Workbook

Sheet Cosine -- Radians
B1: Approximating Sinusoidal Functions
B2: with Lagrange Interpolation Polynomials
B4: This DIGMath module lets you investigate how
B5: Lagrange quadratic Interpolation Polynomials
B6: are used to approximate
B7: the cosine function y = cos x
B8: with x in radians on [0, p/4].
A10: The three interpolating points are x = x0, p/8, and x2.
B12: What is the first point x0 (0 to 0.35)? | E12: =F13/100 -> 0.11
F13: 11 | G13: 127
B15: What is the third point x2 (0.40 to 0.78)? | E15: =F16/100 -> 0.74 | L15: Now trace along the curve: x = | M15: =xMin+N16*dx -> 0.5434955291 | N15: and y = | O15: =LOOKUP(M15+0.001,Calculations!D2:D502,Calculations!E2:E502) -> 0.86
F16: 74 | G16: 127 | N16: 346
L18: The corresponding error = | M18: =Calculations!B13 -> 0.0009
A23: Click each item below for suggestions and investigations
D24: Item 1
D25: Item 2
D26: Item 3
D27: Item 4
D28: Item 5
A32: To access/download all the DIGMath Apps for College Algebra/Precalculus
A33: Click this link: | C33: DIGMath Modules for College Algebra and Precalculus
L34: The maximum error (in absolute value) = | M34: =Calculations!B9 -> 0.00161
A35: Created by: Sheldon P. Gordon & Florence S. Gordon
A36: Farmingdale State College NYIT
A37: Development of this module was supported by the
A38: NSF's Division of Undergraduate Education
A39: under grants DUE-0310123 and DUE-0442160.

Sheet Cosine -- Degrees
B1: Approximating Sinusoidal Functions
B2: with Lagrange Interpolation Polynomials
B4: This DIGMath module lets you investigate how
B5: Lagrange quadratic Interpolation Polynomials
B6: are used to approximate
B7: the cosine function y = cos x
B8: with x in degrees on [0°, 45°].
A10: The three interpolating points are x = x0, 22.5°, and x2.
B12: What is the first point x0 (0 to 20°)? | E12: =F13/10 -> 11 | F12: °
F13: 110 | G13: 127
B15: What is the third point x2 (25° to 45°)? | E15: =F16/10 -> 25 | F15: ° | M15: Now trace along the curve: x = | N15: =O16/10 -> 17.2 | O15: ° and y = | P15: =LOOKUP(N15+0.001,Calculations!M2:M452,Calculations!N2:N452) -> 0.96
F16: 250 | G16: 127 | O16: 172
M18: The corresponding error = | N18: =Calculations!K13 -> -0.0001
B23: Click each item below for suggestions and investigations
D24: Item 1
D25: Item 2
D26: Item 3
D27: Item 4
D28: Item 5
A30: To access/download all the DIGMath Apps for College Algebra/Precalculus
A31: Click this link: | C31: DIGMath Modules for College Algebra and Precalculus
A33: Created by: Sheldon P. Gordon & Florence S. Gordon
A34: Farmingdale State College NYIT | M34: The maximum error (in absolute value) = | N34: =Calculations!K9 -> 0.00589
A35: Development of this module was supported by the
A36: NSF's Division of Undergraduate Education
A37: under grants DUE-0310123 and DUE-0442160.

Sheet 4 Points - Radians
B1: Approximating Sinusoidal Functions
B2: with Lagrange Interpolation Polynomials
B4: This DIGMath module lets you investigate how
B5: Lagrange cubic Interpolation Polynomials
B6: are used to approximate
B7: the cosine function y = cos x
B8: with x in radians on [0, p/4].
A10: The four interpolating points are x = x0, x1, x2, and x3.
B12: What is the first point x0 (0 to 0.20)? | E12: =G13/980 -> 0.20
F13: 29 | G13: 196
B15: What is the second point x1 (0.20 to 0.40)? | E15: =G16/980+0.196 -> 0.40 | L15: Now trace along the curve: x = | M15: =O16*dxxx0 -> 0.344 | N15: and y = | O15: =LOOKUP(M15+0.00001,Calculations!V2:V502,Calculations!W2:W502) -> 0.941
F16: 50 | G16: 196 | O16: 219
B18: What is the third point x2 (0.39 to 0.59)? | E18: =G19/980+0.196*2 -> 0.59 | L18: The corresponding error = | M18: =Calculations!T13 -> -0.000042
F19: 50 | G19: 196
B21: What is the fourth point x3 (0.59 to 0.79)? | E21: =G22/980+0.196*3 -> 0.59
F22: 50 | G22: 0
A26: Click each item below for suggestions and investigations
D27: Item 1
D28: Item 2
D29: Item 3
D30: Item 4
D31: Item 5
A34: To access/download all the DIGMath Apps for College Algebra/Precalculus | L34: The maximum error (in absolute value) = | M34: =Calculations!T9 -> 0.000289
A35: Click this link: | C35: DIGMath Modules for College Algebra and Precalculus
A37: Created by: Sheldon P. Gordon & Florence S. Gordon
A38: Farmingdale State College NYIT
A39: Development of this module was supported by the
A40: NSF's Division of Undergraduate Education
A41: under grants DUE-0310123 and DUE-0442160.

Sheet 4 Points - Degrees
B1: Approximating Sinusoidal Functions
B2: with Lagrange Interpolation Polynomials
B4: This DIGMath module lets you investigate how
B5: Lagrange cubic Interpolation Polynomials
B6: are used to approximate
B7: the cosine function y = cos x
B8: with x in degrees on [0°, 45°].
A10: The four interpolating points are x = x0, x1, x2, and x3.
B12: What is the first point x0 (0 to 11°)? | E12: =F13/10 -> 6.2 | F12: °
E13: 29 | F13: 62
B15: What is the second point x1 (11.5° to 22.5°)? | E15: =F16/10+11.5 -> 19.2 | F15: ° | L15: Now trace along the curve: x = | M15: =N16*dxxxx0 -> 33.10 | N15: ° and y = | O15: =LOOKUP(M15+0.00001,Calculations!AE2:AE452,Calculations!AF2:AF502) -> 0.838
E16: 50 | F16: 77 | N16: 331
B18: What is the third point x2 (23° to 34°)? | E18: =F19/10+11.5*2 -> 32.8 | F18: ° | L18: The corresponding error = | M18: =Calculations!AC13 -> 0.000072
E19: 50 | F19: 98
B21: What is the fourth point x3 (34.5° to 45°)? | E21: =F22/10+11.5*3 -> 41.5 | F21: °
E22: 50 | F22: 70
A26: Click each item below for suggestions and investigations
D27: Item 1
D28: Item 2
D29: Item 3
D30: Item 4
D31: Item 5
A34: To access/download all the DIGMath Apps for College Algebra/Precalculus | L34: The maximum error (in absolute value) = | M34: =Calculations!AC9 -> 0.000174
A35: Click this link: | C35: DIGMath Modules for College Algebra and Precalculus
A37: Created by: Sheldon P. Gordon & Florence S. Gordon
A38: Farmingdale State College NYIT
A39: Development of this module was supported by the
A40: NSF's Division of Undergraduate Education
A41: under grants DUE-0310123 and DUE-0442160.

Sheet Calculations
B1: dx = | C1: =PI()/4/500 -> 0.001570796327 | D1: x | E1: Cosine | F1: L(x) | G1: Error | H1: ABS(Error) | K1: dxx = | L1: =45/450 -> 0.1 | M1: x | N1: Cosine | O1: L(x) | P1: Error | Q1: ABS(Error) | T1: dxxx0 = | U1: =PI()/4/500 -> 0.001570796327 | V1: x | W1: Cosine | X1: L3(x) | Y1: Error | Z1: ABS(Error) | AC1: dxxxx0 = | AD1: 0.1 | AE1: x | AF1: Cosine | AG1: L3(x) | AH1: Error | AI1: ABS(Error)
D2: =0 -> 0 | E2: =COS(x) -> 1 | F2: =y0*(x-x00)*(x-x000)/(x0-x00)/(x0-x000)+y00*(x-x0)*(x-x000)/(x00-x0)/(x00-x000)+y000*(x-x0)*(x-x00)/(x000-x0)/(x000-x00) -> 1.001614775 | G2: =F2-E2 -> 0.001614775298 | H2: =ABS(G2) -> 0.001614775298 | M2: =0 -> 0 | N2: =COS(xx*PI()/180) -> 1 | O2: =yy0*(xx-xx00)*(xx-xx000)/(xx0-xx00)/(xx0-xx000)+yy00*(xx-xx0)*(xx-xx000)/(xx00-xx0)/(xx00-xx000)+yy000*(xx-xx0)*(xx-xx00)/(xx000-xx0)/(xx000-xx00) -> 1.001380287 | P2: =O2-N2 -> 0.001380286728 | Q2: =ABS(P2) -> 0.001380286728 | T2: dxxx = | U2: =T5-T4 -> 0.196 | V2: 0 | W2: =COS(xxx) -> 1 | X2: =yyy0*(xxx-xxx00)*(xxx-xxx000)*(xxx-xxx0000)/(xxx0-xxx00)/(xxx0-xxx000)/(xxx0-xxx0000)+yyy00*(xxx-xxx0)*(xxx-xxx000)*(xxx-xxx0000)/(xxx00-xxx0)/(xxx00-xxx000)/(xxx00-xxx0000)+yyy000*(xxx-xxx0)*(xxx-xxx00)*(xxx-xxx0000)/(xxx000-xxx0)/(xxx000-xxx00)/(xxx000-xxx0000)+yyy0000*(xxx-xxx0)*(xxx-xxx00)*(xxx-xxx000)/(xxx0000-xxx0)/(xxx0000-xxx00)/(xxx0000-xxx000) -> 0.9989277011 | Y2: -0.0002886710084 | Z2: 0.0002886710084 | AC2: dxxxx = | AD2: 13.5 | AE2: 0 | AF2: =COS(xxxx*PI()/180) -> 1 | AG2: =yyyy0*(xxxx-xxxx00)*(xxxx-xxxx000)*(xxxx-xxxx0000)/(xxxx0-xxxx00)/(xxxx0-xxxx000)/(xxxx0-xxxx0000)+yyyy00*(xxxx-xxxx0)*(xxxx-xxxx000)*(xxxx-xxxx0000)/(xxxx00-xxxx0)/(xxxx00-xxxx000)/(xxxx00-xxxx0000)+yyyy000*(xxxx-xxxx0)*(xxxx-xxxx00)*(xxxx-xxxx0000)/(xxxx000-xxxx0)/(xxxx000-xxxx00)/(xxxx000-xxxx0000)+yyyy0000*(xxxx-xxxx0)*(xxxx-xxxx00)*(xxxx-xxxx000)/(xxxx0000-xxxx0)/(xxxx0000-xxxx00)/(xxxx0000-xxxx000) -> 0.9994146961 | AH2: -0.0001397228157 | AI2: 0.0001397228157
B3: x | C3: y | D3: =D2+dx -> 0.001570796327 | E3: 0.9999987663 | F3: 1.001582724 | G3: =F3-E3 -> 0.001583957533 | H3: =ABS(G3) -> 0.001583957533 | K3: x | L3: y | M3: =M2+dxx -> 0.1 | N3: 0.9999984769 | O3: 1.001356985 | P3: =O3-N3 -> 0.00135850815 | Q3: =ABS(P3) -> 0.00135850815 | T3: x | U3: y | V3: =V2+dxxx0 -> 0.001570796327 | W3: 0.9999987663 | X3: 0.9989448473 | Y3: -0.0002779889729 | Z3: 0.0002779889729 | AC3: xxxx | AD3: yyyy | AE3: 0.1 | AF3: 0.9999984769 | AG3: 0.999428796 | AH3: -0.0001311039856 | AI3: 0.0001311039856
A4: 1 | B4: =x0 -> 0.11 | C4: =COS(x0) -> 0.993956098 | D4: 0.003141592654 | E4: 0.9999950652 | F4: 1.001548432 | G4: 0.001553367088 | H4: 0.001553367088 | J4: 1 | K4: =xx0 -> 11 | L4: =COS(K4*PI()/180) -> 0.9816271834 | M4: 0.2 | N4: 0.9999939077 | O4: 1.001330816 | P4: 0.001336908365 | Q4: 0.001336908365 | S4: 1 | T4: =xxx0 -> 0.2 | U4: =COS(T4) -> 0.9800665778 | V4: 0.003141592654 | W4: 0.9999950652 | X4: 0.9989593074 | Y4: -0.0002674839851 | Z4: 0.0002674839851 | AB4: 1 | AC4: =xxxx0 -> 6.2 | AD4: =COS(AC4*PI()/180) -> 0.994150964 | AE4: 0.2 | AF4: 0.9999939077 | AG4: 0.9994396055 | AH4: -0.0001226686925 | AI4: 0.0001226686925
A5: 2 | B5: =PI()/8 -> 0.3926990817 | C5: =COS(B5) -> 0.9238795325 | D5: 0.00471238898 | E5: 0.9999888967 | F5: 1.001511901 | G5: 0.001523003956 | H5: 0.001523003956 | J5: 2 | K5: =22.5 -> 22.5 | L5: =COS(K5*PI()/180) -> 0.9238795325 | M5: 0.3 | N5: 0.9999862922 | O5: 1.00130178 | P5: 0.001315487359 | Q5: 0.001315487359 | S5: 2 | T5: =xxx00 -> 0.396 | U5: =COS(T5) -> 0.9226112947 | V5: 0.00471238898 | W5: 0.9999888967 | X5: 0.9989710829 | Y5: -0.0002571544818 | Z5: 0.0002571544818 | AB5: 2 | AC5: =xxxx00 -> 19.2 | AD5: =COS(AC5*PI()/180) -> 0.9443763702 | AE5: 0.3 | AF5: 0.9999862922 | AG5: 0.9994471267 | AH5: -0.0001144149512 | AI5: 0.0001144149512
A6: 3 | B6: =x000 -> 0.74 | C6: =COS(x000) -> 0.7384685587 | D6: 0.006283185307 | E6: 0.9999802609 | F6: 1.001473129 | G6: 0.001492868121 | H6: 0.001492868121 | J6: 3 | K6: =xx000 -> 25 | L6: =COS(K6*PI()/180) -> 0.906307787 | M6: 0.4 | N6: 0.9999756307 | O6: 1.001269876 | P6: 0.001294245108 | Q6: 0.001294245108 | S6: 3 | T6: =xxx000 -> 0.592 | U6: =COS(T6) -> 0.8298262959 | V6: 0.006283185307 | W6: 0.9999802609 | X6: 0.9989801757 | Y6: -0.0002469989058 | Z6: 0.0002469989058 | AB6: 3 | AC6: =xxxx000 -> 32.8 | AD6: =COS(AC6*PI()/180) -> 0.8405666035 | AE6: 0.4 | AF6: 0.9999756307 | AG6: 0.999451362 | AH6: -0.0001063407857 | AI6: 0.0001063407857
D7: 0.007853981634 | E7: 0.9999691576 | F7: 1.001432117 | G7: 0.001462959562 | H7: 0.001462959562 | M7: 0.5 | N7: 0.9999619231 | O7: 1.001235105 | P7: 0.00127318158 | Q7: 0.00127318158 | S7: 4 | T7: =xxx0000 -> 0.588 | U7: =COS(T7) -> 0.8320517385 | V7: 0.007853981634 | W7: 0.9999691576 | X7: 0.9989865872 | Y7: -0.0002370157061 | Z7: 0.0002370157061 | AB7: 4 | AC7: =xxxx0000 -> 41.5 | AD7: =COS(AC7*PI()/180) -> 0.7489557208 | AE7: 0.5 | AF7: 0.9999619231 | AG7: 0.9994523136 | AH7: -9.844422928e-05 | AI7: 9.844422928e-05
D8: 0.009424777961 | E8: 0.9999555871 | F8: 1.001388865 | G8: 0.00143327825 | H8: 0.00143327825 | M8: 0.6 | N8: 0.9999451694 | O8: 1.001197466 | P8: 0.001252296733 | Q8: 0.001252296733 | V8: 0.009424777961 | W8: 0.9999555871 | X8: 0.9989903193 | Y8: -0.0002272033377 | Z8: 0.0002272033377 | AE8: 0.6 | AF8: 0.9999451694 | AG8: 0.9994499836 | AH8: -9.072332447e-05 | AI8: 9.072332447e-05
A9: MaxError = | B9: =MAX(H2:H502) -> 0.001614775298 | D9: 0.01099557429 | E9: 0.9999395493 | F9: 1.001343373 | G9: 0.001403824153 | H9: 0.001403824153 | J9: MaxError = | K9: =MAX(Q2:Q452) -> 0.005888921991 | M9: 0.7 | N9: 0.9999253697 | O9: 1.00115696 | P9: 0.001231590517 | Q9: 0.001231590517 | S9: MaxError = | T9: =MAX(Z2:Z502) -> 0.0002886710084 | V9: 0.01099557429 | W9: 0.9999395493 | X9: 0.9989913735 | Y9: -0.0002175602617 | Z9: 0.0002175602617 | AB9: MaxError = | AC9: =MAX(AI2:AL452) -> 0.0001739253025 | AE9: 0.7 | AF9: 0.9999253697 | AG9: 0.9994443743 | AH9: -8.317612314e-05 | AI9: 8.317612314e-05
D10: 0.01256637061 | E10: 0.9999210442 | F10: 1.001295641 | G10: 0.001374597232 | H10: 0.001374597232 | M10: 0.8 | N10: 0.999902524 | O10: 1.001113587 | P10: 0.00121106287 | Q10: 0.00121106287 | V10: 0.01256637061 | W10: 0.9999210442 | X10: 0.9989897515 | Y10: -0.0002080849453 | Z10: 0.0002080849453 | AE10: 0.8 | AF10: 0.999902524 | AG10: 0.999435488 | AH10: -7.580068642e-05 | AI10: 7.580068642e-05
D11: 0.01413716694 | E11: 0.9999000719 | F11: 1.001245669 | G11: 0.001345597439 | H11: 0.001345597439 | M11: 0.9 | N11: 0.9998766325 | O11: 1.001067346 | P11: 0.001190713724 | Q11: 0.001190713724 | V11: 0.01413716694 | W11: 0.9999000719 | X11: 0.998985455 | Y11: -0.0001987758617 | Z11: 0.0001987758617 | AE11: 0.9 | AF11: 0.9998766325 | AG11: 0.9994233268 | AH11: -6.859508472e-05 | AI11: 6.859508472e-05
A12: Point | D12: 0.01570796327 | E12: 0.9998766325 | F12: 1.001193457 | G12: 0.001316824725 | H12: 0.001316824725 | J12: Point | M12: 1 | N12: 0.9998476952 | O12: 1.001018238 | P12: 0.001170542999 | Q12: 0.001170542999 | S12: Point | V12: 0.01570796327 | W12: 0.9998766325 | X12: 0.9989784856 | Y12: -0.0001896314905 | Z12: 0.0001896314905 | AB12: Point | AE12: 1 | AF12: 0.9998476952 | AG12: 0.9994078931 | AH12: -6.155739772e-05 | AI12: 6.155739772e-05
A13: ='Cosine -- Radians'!M15 -> 0.5434955291 | B13: =LOOKUP(A13,D2:D502,G2:G502) -> 0.0009133702035 | D13: 0.01727875959 | E13: 0.9998507259 | F13: 1.001139005 | G13: 0.00128827903 | H13: 0.00128827903 | J13: ='Cosine -- Degrees'!N15 -> 17.2 | K13: =LOOKUP(J13,M2:M452,P2:P452) -> -7.359576836e-05 | M13: 1.1 | N13: 0.9998157121 | O13: 1.000966263 | P13: 0.001150550608 | Q13: 0.001150550608 | S13: ='4 Points - Radians'!M15 -> 0.3440043956 | T13: =LOOKUP(S13+0.000001,V2:V502,Y2:Y502) -> -4.176988508e-05 | V13: 0.01727875959 | W13: 0.9998507259 | X13: 0.998968845 | Y13: -0.0001806503169 | Z13: 0.0001806503169 | AB13: ='4 Points - Degrees'!M15 -> 33.1 | AC13: =LOOKUP(AB13,AE2:AE452,AH2:AH452) -> 7.221491053e-05 | AE13: 1.1 | AF13: 0.9998157121 | AG13: 0.9993891889 | AH13: -5.468571438e-05 | AI13: 5.468571438e-05
D14: 0.01884955592 | E14: 0.9998223524 | F14: 1.001082313 | G14: 0.001259960291 | H14: 0.001259960291 | M14: 1.2 | N14: 0.9997806835 | O14: 1.00091142 | P14: 0.001130736452 | Q14: 0.001130736452 | V14: 0.01884955592 | W14: 0.9998223524 | X14: 0.9989565348 | Y14: -0.0001718308327 | Z14: 0.0001718308327 | AE14: 1.2 | AF14: 0.9997806835 | AG14: 0.9993672167 | AH14: -4.797813294e-05 | AI14: 4.797813294e-05
D15: 0.02042035225 | E15: 0.9997915119 | F15: 1.00102338 | G15: 0.001231868438 | H15: 0.001231868438 | M15: 1.3 | N15: 0.9997426093 | O15: 1.00085371 | P15: 0.001111100426 | Q15: 0.001111100426 | V15: 0.02042035225 | W15: 0.9997915119 | X15: 0.9989415568 | Y15: -0.0001631715353 | Z15: 0.0001631715353 | AE15: 1.3 | AF15: 0.9997426093 | AG15: 0.9993419785 | AH15: -4.143276091e-05 | AI15: 4.143276091e-05
D16: 0.02199114858 | E16: 0.9997582044 | F16: 1.000962208 | G16: 0.001204003395 | H16: 0.001204003395 | M16: 1.4 | N16: 0.9997014898 | O16: 1.000793132 | P16: 0.001091642413 | Q16: 0.001091642413 | V16: 0.02199114858 | W16: 0.9997582044 | X16: 0.9989239125 | Y16: -0.0001546709286 | Z16: 0.0001546709286 | AE16: 1.4 | AF16: 0.9997014898 | AG16: 0.9993134766 | AH16: -3.50477151e-05 | AI16: 3.50477151e-05
D17: 0.0235619449 | E17: 0.9997224302 | F17: 1.000898795 | G17: 0.001176365079 | H17: 0.001176365079 | M17: 1.5 | N17: 0.999657325 | O17: 1.000729687 | P17: 0.001072362287 | Q17: 0.001072362287 | V17: 0.0235619449 | W17: 0.9997224302 | X17: 0.9989036037 | Y17: -0.0001463275224 | Z17: 0.0001463275224 | AE17: 1.5 | AF17: 0.999657325 | AG17: 0.9992817132 | AH17: -2.882112158e-05 | AI17: 2.882112158e-05
D18: 0.02513274123 | E18: 0.9996841893 | F18: 1.000833143 | G18: 0.001148953403 | H18: 0.001148953403 | M18: 1.6 | N18: 0.999610115 | O18: 1.000663375 | P18: 0.001053259916 | Q18: 0.001053259916 | V18: 0.02513274123 | W18: 0.9996841893 | X18: 0.998880632 | Y18: -0.0001381398325 | Z18: 0.0001381398325 | AE18: 1.6 | AF18: 0.999610115 | AG18: 0.9992466906 | AH18: -2.275111568e-05 | AI18: 2.275111568e-05
D19: 0.02670353756 | E19: 0.9996434817 | F19: 1.00076525 | G19: 0.001121768272 | H19: 0.001121768272 | M19: 1.7 | N19: 0.9995598601 | O19: 1.000594195 | P19: 0.001034335153 | Q19: 0.001034335153 | V19: 0.02670353756 | W19: 0.9996434817 | X19: 0.998854999 | Y19: -0.0001301063809 | Z19: 0.0001301063809 | AE19: 1.7 | AF19: 0.9995598601 | AG19: 0.999208411 | AH19: -1.683584204e-05 | AI19: 1.683584204e-05
D20: 0.02827433388 | E20: 0.9996003077 | F20: 1.000695117 | G20: 0.001094809586 | H20: 0.001094809586 | M20: 1.8 | N20: 0.9995065604 | O20: 1.000522148 | P20: 0.001015587847 | Q20: 0.001015587847 | V20: 0.02827433388 | W20: 0.9996003077 | X20: 0.9988267065 | Y20: -0.0001222256958 | Z20: 0.0001222256958 | AE20: 1.8 | AF20: 0.9995065604 | AG20: 0.9991668767 | AH20: -1.107345455e-05 | AI20: 1.107345455e-05
D21: 0.02984513021 | E21: 0.9995546672 | F21: 1.000622744 | G21: 0.001068077237 | H21: 0.001068077237 | M21: 1.9 | N21: 0.9994502159 | O21: 1.000447234 | P21: 0.0009970178359 | Q21: 0.0009970178359 | V21: 0.02984513021 | W21: 0.9995546672 | X21: 0.998795756 | Y21: -0.0001144963112 | Z21: 0.0001144963112 | AE21: 1.9 | AF21: 0.9994502159 | AG21: 0.9991220898 | AH21: -5.462116387e-06 | AI21: 5.462116387e-06
D22: 0.03141592654 | E22: 0.9995065604 | F22: 1.000548131 | G22: 0.001041571114 | H22: 0.001041571114 | M22: 2 | N22: 0.999390827 | O22: 1.000369452 | P22: 0.0009786249467 | Q22: 0.0009786249467 | V22: 0.03141592654 | W22: 0.9995065604 | X22: 0.9987621493 | Y22: -0.0001069167674 | Z22: 0.0001069167674 | AE22: 2 | AF22: 0.999390827 | AG22: 0.9990740525 | AH22: 0 | AI22: 0
D23: 0.03298672286 | E23: 0.9994559874 | F23: 1.000471278 | G23: 0.001015291098 | H23: 0.001015291098 | M23: 2.1 | N23: 0.9993283938 | O23: 1.000288803 | P23: 0.0009604089992 | Q23: 0.0009604089992 | V23: 0.03298672286 | W23: 0.9994559874 | X23: 0.9987258879 | Y23: -9.948561069e-05 | Z23: 9.948561069e-05 | AE23: 2.1 | AF23: 0.9993283938 | AG23: 0.9990227672 | AH23: 5.314712889e-06 | AI23: 5.314712889e-06
D24: 0.03455751919 | E24: 0.9994029484 | F24: 1.000392185 | G24: 0.0009892370632 | H24: 0.0009892370632 | M24: 2.2 | N24: 0.9992629164 | O24: 1.000205286 | P24: 0.000942369803 | Q24: 0.000942369803 | V24: 0.03455751919 | W24: 0.9994029484 | X24: 0.9986869737 | Y24: -9.220139357e-05 | Z24: 9.220139357e-05 | AE24: 2.2 | AF24: 0.9992629164 | AG24: 0.998968236 | AH24: 1.048383128e-05 | AI24: 1.048383128e-05
D25: 0.03612831552 | E25: 0.9993474434 | F25: 1.000310852 | G25: 0.0009634088799 | H25: 0.0009634088799 | M25: 2.3 | N25: 0.9991943951 | O25: 1.000118902 | P25: 0.0009245071589 | Q25: 0.0009245071589 | V25: 0.03612831552 | W25: 0.9993474434 | X25: 0.9986454081 | Y25: -8.506267449e-05 | Z25: 8.506267449e-05 | AE25: 2.3 | AF25: 0.9991943951 | AG25: 0.9989104612 | AH25: 1.550915492e-05 | AI25: 1.550915492e-05
D26: 0.03769911184 | E26: 0.9992894726 | F26: 1.000227279 | G26: 0.0009378064107 | H26: 0.0009378064107 | M26: 2.4 | N26: 0.9991228301 | O26: 1.000029651 | P26: 0.0009068208579 | Q26: 0.0009068208579 | V26: 0.03769911184 | W26: 0.9992894726 | X26: 0.9986011929 | Y26: -7.806801802e-05 | Z26: 7.806801802e-05 | AE26: 2.4 | AF26: 0.9991228301 | AG26: 0.998849445 | AH26: 2.039247424e-05 | AI26: 2.039247424e-05
D27: 0.03926990817 | E27: 0.9992290362 | F27: 1.000141466 | G27: 0.0009124295126 | H27: 0.0009124295126 | M27: 2.5 | N27: 0.9990482216 | O27: 0.9999375323 | P27: 0.0008893106822 | Q27: 0.0008893106822 | V27: 0.03926990817 | W27: 0.9992290362 | X27: 0.9985543298 | Y27: -7.121599485e-05 | Z27: 7.121599485e-05 | AE27: 2.5 | AF27: 0.9990482216 | AG27: 0.9987851896 | AH27: 2.513557045e-05 | AI27: 2.513557045e-05
D28: 0.0408407045 | E28: 0.9991661343 | F28: 1.000053412 | G28: 0.0008872780364 | H28: 0.0008872780364 | M28: 2.6 | N28: 0.9989705698 | O28: 0.9998425462 | P28: 0.0008719764045 | Q28: 0.0008719764045 | V28: 0.0408407045 | W28: 0.9991661343 | X28: 0.9985048203 | Y28: -6.450518171e-05 | Z28: 6.450518171e-05 | AE28: 2.6 | AF28: 0.9989705698 | AG28: 0.9987176972 | AH28: 2.974021546e-05 | AI28: 2.974021546e-05
D29: 0.04241150082 | E29: 0.9991007671 | F29: 0.9999631189 | G29: 0.000862351827 | H29: 0.000862351827 | M29: 2.7 | N29: 0.998889875 | O29: 0.9997446928 | P29: 0.0008548177882 | Q29: 0.0008548177882 | V29: 0.04241150082 | W29: 0.9991007671 | X29: 0.9984526663 | Y29: -5.793416145e-05 | Z29: 5.793416145e-05 | AE29: 2.7 | AF29: 0.998889875 | AG29: 0.9986469702 | AH29: 3.420817191e-05 | AI29: 3.420817191e-05
D30: 0.04398229715 | E30: 0.9990329347 | F30: 0.9998705854 | G30: 0.0008376507231 | H30: 0.0008376507231 | M30: 2.8 | N30: 0.9988061373 | O30: 0.9996439719 | P30: 0.0008378345875 | Q30: 0.0008378345875 | V30: 0.04398229715 | W30: 0.9990329347 | X30: 0.9983978692 | Y30: -5.150152296e-05 | Z30: 5.150152296e-05 | AE30: 2.8 | AF30: 0.9988061373 | AG30: 0.9985730106 | AH30: 3.854119318e-05 | AI30: 3.854119318e-05
D31: 0.04555309348 | E31: 0.9989626372 | F31: 0.9997758118 | G31: 0.0008131745573 | H31: 0.0008131745573 | M31: 2.9 | N31: 0.9987193572 | O31: 0.9995403837 | P31: 0.0008210265473 | Q31: 0.0008210265473 | V31: 0.04555309348 | W31: 0.9989626372 | X31: 0.9983404308 | Y31: -4.520586127e-05 | Z31: 4.520586127e-05 | AE31: 2.9 | AF31: 0.9987193572 | AG31: 0.9984958208 | AH31: 4.274102337e-05 | AI31: 4.274102337e-05
D32: 0.0471238898 | E32: 0.998889875 | F32: 0.9996787981 | G32: 0.0007889231561 | H32: 0.0007889231561 | M32: 3 | N32: 0.9986295348 | O32: 0.9994339282 | P32: 0.0008043934033 | Q32: 0.0008043934033 | V32: 0.0471238898 | W32: 0.998889875 | X32: 0.9982803528 | Y32: -3.904577743e-05 | Z32: 3.904577743e-05 | AE32: 3 | AF32: 0.9986295348 | AG32: 0.9984154029 | AH32: 4.680939733e-05 | AI32: 4.680939733e-05
D33: 0.04869468613 | E33: 0.998814648 | F33: 0.9995795444 | G33: 0.0007648963401 | H33: 0.0007648963401 | M33: 3.1 | N33: 0.9985366703 | O33: 0.9993246052 | P33: 0.0007879348819 | Q33: 0.0007879348819 | V33: 0.04869468613 | W33: 0.998814648 | X33: 0.9982176368 | Y33: -3.301987862e-05 | Z33: 3.301987862e-05 | AE33: 3.1 | AF33: 0.9985366703 | AG33: 0.9983317592 | AH33: 5.074804063e-05 | AI33: 5.074804063e-05
D34: 0.05026548246 | E34: 0.9987369566 | F34: 0.9994780505 | G34: 0.0007410939236 | H34: 0.0007410939236 | M34: 3.2 | N34: 0.9984407642 | O34: 0.9992124149 | P34: 0.0007716507002 | Q34: 0.0007716507002 | V34: 0.05026548246 | W34: 0.9987369566 | X34: 0.9981522844 | Y34: -2.712677809e-05 | Z34: 2.712677809e-05 | AE34: 3.2 | AF34: 0.9984407642 | AG34: 0.998244892 | AH34: 5.455866957e-05 | AI34: 5.455866957e-05
D35: 0.05183627878 | E35: 0.9986568009 | F35: 0.9993743166 | G35: 0.0007175157149 | H35: 0.0007175157149 | M35: 3.3 | N35: 0.9983418166 | O35: 0.9990973572 | P35: 0.000755540566 | Q35: 0.000755540566 | V35: 0.05183627878 | W35: 0.9986568009 | X35: 0.9980842974 | Y35: -2.136509514e-05 | Z35: 2.136509514e-05 | AE35: 3.3 | AF35: 0.9983418166 | AG35: 0.9981548034 | AH35: 5.824299119e-05 | AI35: 5.824299119e-05
D36: 0.05340707511 | E36: 0.9985741811 | F36: 0.9992683426 | G36: 0.0006941615162 | H36: 0.0006941615162 | M36: 3.4 | N36: 0.9982398279 | O36: 0.9989794321 | P36: 0.000739604178 | Q36: 0.000739604178 | V36: 0.05340707511 | W36: 0.9985741811 | X36: 0.9980136774 | Y36: -1.57334552e-05 | Z36: 1.57334552e-05 | AE36: 3.4 | AF36: 0.9982398279 | AG36: 0.9980614957 | AH36: 6.180270326e-05 | AI36: 6.180270326e-05
D37: 0.05497787144 | E37: 0.9984890975 | F37: 0.9991601286 | G37: 0.0006710311237 | H37: 0.0006710311237 | M37: 3.5 | N37: 0.9981347984 | O37: 0.9988586396 | P37: 0.0007238412254 | Q37: 0.0007238412254 | V37: 0.05497787144 | W37: 0.9984890975 | X37: 0.997940426 | Y37: -1.023048974e-05 | Z37: 1.023048974e-05 | AE37: 3.5 | AF37: 0.9981347984 | AG37: 0.9979649711 | AH37: 6.523949431e-05 | AI37: 6.523949431e-05
D38: 0.05654866776 | E38: 0.9984015501 | F38: 0.9990496744 | G38: 0.0006481243274 | H38: 0.0006481243274 | M38: 3.6 | N38: 0.9980267284 | O38: 0.9987349798 | P38: 0.0007082513883 | Q38: 0.0007082513883 | V38: 0.05654866776 | W38: 0.9984015501 | X38: 0.9978645449 | Y38: -4.854836331e-06 | Z38: 4.854836331e-06 | AE38: 3.6 | AF38: 0.9980267284 | AG38: 0.9978652318 | AH38: 6.855504357e-05 | AI38: 6.855504357e-05
D39: 0.05811946409 | E39: 0.9983115393 | F39: 0.9989369802 | G39: 0.0006254409114 | H39: 0.0006254409114 | M39: 3.7 | N39: 0.9979156183 | O39: 0.9986084526 | P39: 0.0006928343375 | Q39: 0.0006928343375 | V39: 0.05811946409 | W39: 0.9983115393 | X39: 0.9977860358 | Y39: 3.94861389e-07 | Z39: 3.94861389e-07 | AE39: 3.7 | AF39: 0.9979156183 | AG39: 0.9977622801 | AH39: 7.175102103e-05 | AI39: 7.175102103e-05
D40: 0.05969026042 | E40: 0.9982190653 | F40: 0.9988220459 | G40: 0.0006029806535 | H40: 0.0006029806535 | M40: 3.8 | N40: 0.9978014683 | O40: 0.998479058 | P40: 0.0006775897346 | Q40: 0.0006775897346 | V40: 0.05969026042 | W40: 0.9982190653 | X40: 0.9977049003 | Y40: 5.519953696e-06 | Z40: 5.519953696e-06 | AE40: 3.8 | AF40: 0.9978014683 | AG40: 0.9976561182 | AH40: 7.482908742e-05 | AI40: 7.482908742e-05
D41: 0.06126105675 | E41: 0.9981241282 | F41: 0.9987048716 | G41: 0.0005807433255 | H41: 0.0005807433255 | M41: 3.9 | N41: 0.9976842788 | O41: 0.9983467961 | P41: 0.0006625172318 | Q41: 0.0006625172318 | V41: 0.06126105675 | W41: 0.9981241282 | X41: 0.9976211401 | Y41: 1.052178479e-05 | Z41: 1.052178479e-05 | AE41: 3.9 | AF41: 0.9976842788 | AG41: 0.9975467483 | AH41: 7.77908942e-05 | AI41: 7.77908942e-05
D42: 0.06283185307 | E42: 0.9980267284 | F42: 0.9985854571 | G42: 0.0005587286933 | H42: 0.0005587286933 | M42: 4 | N42: 0.9975640503 | O42: 0.9982116667 | P42: 0.0006476164722 | Q42: 0.0006476164722 | V42: 0.06283185307 | W42: 0.9980267284 | X42: 0.9975347568 | Y42: 1.54016928e-05 | Z42: 1.54016928e-05 | AE42: 4 | AF42: 0.9975640503 | AG42: 0.9974341727 | AH42: 8.063808358e-05 | AI42: 8.063808358e-05
D43: 0.0644026494 | E43: 0.9979268661 | F43: 0.9984638026 | G43: 0.0005369365164 | H43: 0.0005369365164 | M43: 4.1 | N43: 0.9974407829 | O43: 0.99807367 | P43: 0.0006328870895 | Q43: 0.0006328870895 | V43: 0.0644026494 | W43: 0.9979268661 | X43: 0.9974457522 | Y43: 2.016100976e-05 | Z43: 2.016100976e-05 | AE43: 4.1 | AF43: 0.9974407829 | AG43: 0.9973183935 | AH43: 8.337228851e-05 | AI43: 8.337228851e-05
D44: 0.06597344573 | E44: 0.9978245415 | F44: 0.998339908 | G44: 0.0005153665486 | H44: 0.0005153665486 | M44: 4.2 | N44: 0.9973144772 | O44: 0.9979328059 | P44: 0.0006183287083 | Q44: 0.0006183287083 | V44: 0.06597344573 | W44: 0.9978245415 | X44: 0.9973541278 | Y44: 2.480106166e-05 | Z44: 2.480106166e-05 | AE44: 4.2 | AF44: 0.9973144772 | AG44: 0.997199413 | AH44: 8.599513268e-05 | AI44: 8.599513268e-05
D45: 0.06754424205 | E45: 0.9977197548 | F45: 0.9982137733 | G45: 0.0004940185373 | H45: 0.0004940185373 | M45: 4.3 | N45: 0.9971851335 | O45: 0.9977890745 | P45: 0.0006039409437 | Q45: 0.0006039409437 | V45: 0.06754424205 | W45: 0.9977197548 | X45: 0.9972598854 | Y45: 2.932316838e-05 | Z45: 2.932316838e-05 | AE45: 4.3 | AF45: 0.9971851335 | AG45: 0.9970772335 | AH45: 8.850823054e-05 | AI45: 8.850823054e-05
D46: 0.06911503838 | E46: 0.9976125064 | F46: 0.9980853986 | G46: 0.0004728922239 | H46: 0.0004728922239 | M46: 4.4 | N46: 0.9970527522 | O46: 0.9976424756 | P46: 0.0005897234017 | Q46: 0.0005897234017 | V46: 0.06911503838 | W46: 0.9976125064 | X46: 0.9971630265 | Y46: 3.372864375e-05 | Z46: 3.372864375e-05 | AE46: 4.4 | AF46: 0.9970527522 | AG46: 0.9969518571 | AH46: 9.091318725e-05 | AI46: 9.091318725e-05
D47: 0.07068583471 | E47: 0.9975027964 | F47: 0.9979547838 | G47: 0.0004519873439 | H47: 0.0004519873439 | M47: 4.5 | N47: 0.9969173337 | O47: 0.9974930094 | P47: 0.0005756756792 | Q47: 0.0005756756792 | V47: 0.07068583471 | W47: 0.9975027964 | X47: 0.9970635529 | Y47: 3.801879551e-05 | Z47: 3.801879551e-05 | AE47: 4.5 | AF47: 0.9969173337 | AG47: 0.9968232862 | AH47: 9.321159875e-05 | AI47: 9.321159875e-05
D48: 0.07225663103 | E48: 0.9973906252 | F48: 0.9978219289 | G48: 0.0004313036265 | H48: 0.0004313036265 | M48: 4.6 | N48: 0.9967788785 | O48: 0.9973406758 | P48: 0.0005617973636 | Q48: 0.0005617973636 | V48: 0.07225663103 | W48: 0.9973906252 | X48: 0.9969614662 | Y48: 4.219492534e-05 | Z48: 4.219492534e-05 | AE48: 4.6 | AF48: 0.9967788785 | AG48: 0.9966915228 | AH48: 9.540505173e-05 | AI48: 9.540505173e-05
D49: 0.07382742736 | E49: 0.9972759931 | F49: 0.9976868339 | G49: 0.000410840795 | H49: 0.000410840795 | M49: 4.7 | N49: 0.9966373868 | O49: 0.9971854749 | P49: 0.0005480880332 | Q49: 0.0005480880332 | V49: 0.07382742736 | W49: 0.9972759931 | X49: 0.9968567681 | Y49: 4.625832883e-05 | Z49: 4.625832883e-05 | AE49: 4.7 | AF49: 0.9966373868 | AG49: 0.9965565693 | AH49: 9.74951236e-05 | AI49: 9.74951236e-05
D50: 0.07539822369 | E50: 0.9971589003 | F50: 0.9975494988 | G50: 0.0003905985665 | H50: 0.0003905985665 | M50: 4.8 | N50: 0.9964928592 | O50: 0.9970274065 | P50: 0.0005345472569 | Q50: 0.0005345472569 | V50: 0.07539822369 | W50: 0.9971589003 | X50: 0.9967494602 | Y50: 5.021029551e-05 | Z50: 5.021029551e-05 | AE50: 4.8 | AF50: 0.9964928592 | AG50: 0.9964184279 | AH50: 9.948338255e-05 | AI50: 9.948338255e-05
D51: 0.07696902001 | E51: 0.997039347 | F51: 0.9974099237 | G51: 0.0003705766521 | H51: 0.0003705766521 | M51: 4.9 | N51: 0.9963452962 | O51: 0.9968664708 | P51: 0.0005211745945 | Q51: 0.0005211745945 | V51: 0.07696902001 | W51: 0.997039347 | X51: 0.9966395443 | Y51: 5.405210885e-05 | Z51: 5.405210885e-05 | AE51: 4.9 | AF51: 0.9963452962 | AG51: 0.9962771008 | AH51: 0.0001013713875 | AI51: 0.0001013713875
D52: 0.07853981634 | E52: 0.9969173337 | F52: 0.9972681085 | G52: 0.0003507747569 | H52: 0.0003507747569 | M52: 5 | N52: 0.9961946981 | O52: 0.9967026677 | P52: 0.0005079695964 | Q52: 0.0005079695964 | V52: 0.07853981634 | W52: 0.9969173337 | X52: 0.9965270218 | Y52: 5.778504622e-05 | Z52: 5.778504622e-05 | AE52: 5 | AF52: 0.9961946981 | AG52: 0.9961325902 | AH52: 0.0001031606882 | AI52: 0.0001031606882
D53: 0.08011061267 | E53: 0.9967928606 | F53: 0.9971240532 | G53: 0.0003311925797 | H53: 0.0003311925797 | M53: 5.1 | N53: 0.9960410654 | O53: 0.9965359972 | P53: 0.0004949318041 | Q53: 0.0004949318041 | V53: 0.08011061267 | W53: 0.9967928606 | X53: 0.9964118946 | Y53: 6.141037895e-05 | Z53: 6.141037895e-05 | AE53: 5.1 | AF53: 0.9960410654 | AG53: 0.9959848984 | AH53: 0.0001048528249 | AI53: 0.0001048528249
D54: 0.08168140899 | E54: 0.996665928 | F54: 0.9969777578 | G54: 0.0003118298135 | H54: 0.0003118298135 | M54: 5.2 | N54: 0.9958843986 | O54: 0.9963664594 | P54: 0.0004820607493 | Q54: 0.0004820607493 | V54: 0.08168140899 | W54: 0.996665928 | X54: 0.9962941643 | Y54: 6.492937227e-05 | Z54: 6.492937227e-05 | AE54: 5.2 | AF54: 0.9958843986 | AG54: 0.9958340275 | AH54: 0.000106449329 | AI54: 0.000106449329
D55: 0.08325220532 | E55: 0.9965365363 | F55: 0.9968292224 | G55: 0.000292686145 | H55: 0.000292686145 | M55: 5.3 | N55: 0.9957246982 | O55: 0.9961940541 | P55: 0.000469355955 | Q55: 0.000469355955 | V55: 0.08325220532 | W55: 0.9965365363 | X55: 0.9961738325 | Y55: 6.834328537e-05 | Z55: 6.834328537e-05 | AE55: 5.3 | AF55: 0.9957246982 | AG55: 0.9956799799 | AH55: 0.0001079517224 | AI55: 0.0001079517224
D56: 0.08482300165 | E56: 0.9964046856 | F56: 0.9966784469 | G56: 0.000273761255 | H56: 0.000273761255 | M56: 5.4 | N56: 0.9955619646 | O56: 0.9960187815 | P56: 0.0004568169345 | Q56: 0.0004568169345 | V56: 0.08482300165 | W56: 0.9964046856 | X56: 0.9960509009 | Y56: 7.165337135e-05 | Z56: 7.165337135e-05 | AE56: 5.4 | AF56: 0.9955619646 | AG56: 0.9955227578 | AH56: 0.0001093615177 | AI56: 0.0001093615177
D57: 0.08639379797 | E57: 0.9962703765 | F57: 0.9965254313 | G57: 0.0002550548182 | H57: 0.0002550548182 | M57: 5.5 | N57: 0.9953961984 | O57: 0.9958406416 | P57: 0.0004444431924 | Q57: 0.0004444431924 | V57: 0.08639379797 | W57: 0.9962703765 | X57: 0.9959253712 | Y57: 7.486087726e-05 | Z57: 7.486087726e-05 | AE57: 5.5 | AF57: 0.9953961984 | AG57: 0.9953623633 | AH57: 0.0001106802186 | AI57: 0.0001106802186
D58: 0.0879645943 | E58: 0.9961336091 | F58: 0.9963701756 | G58: 0.0002365665031 | H58: 0.0002365665031 | M58: 5.6 | N58: 0.9952274 | O58: 0.9956596342 | P58: 0.0004322342234 | Q58: 0.0004322342234 | V58: 0.0879645943 | W58: 0.9961336091 | X58: 0.995797245 | Y58: 7.796704408e-05 | Z58: 7.796704408e-05 | AE58: 5.6 | AF58: 0.9952274 | AG58: 0.9951987987 | AH58: 0.0001119093191 | AI58: 0.0001119093191
D59: 0.08953539063 | E59: 0.9959943839 | F59: 0.9962126799 | G59: 0.0002182959724 | H59: 0.0002182959724 | M59: 5.7 | N59: 0.99505557 | O59: 0.9954757595 | P59: 0.0004201895136 | Q59: 0.0004201895136 | V59: 0.08953539063 | W59: 0.9959943839 | X59: 0.9956665239 | Y59: 8.097310672e-05 | Z59: 8.097310672e-05 | AE59: 5.7 | AF59: 0.99505557 | AG59: 0.9950320662 | AH59: 0.0001130503042 | AI59: 0.0001130503042
D60: 0.09110618695 | E60: 0.9958527012 | F60: 0.9960529441 | G60: 0.0002002428824 | H60: 0.0002002428824 | M60: 5.8 | N60: 0.9948807088 | O60: 0.9952890174 | P60: 0.0004083085394 | Q60: 0.0004083085394 | V60: 0.09110618695 | W60: 0.9958527012 | X60: 0.9955332098 | Y60: 8.388029402e-05 | Z60: 8.388029402e-05 | AE60: 5.8 | AF60: 0.9948807088 | AG60: 0.9948621682 | AH60: 0.0001141046499 | AI60: 0.0001141046499
D61: 0.09267698328 | E61: 0.9957085613 | F61: 0.9958909682 | G61: 0.0001824068836 | H61: 0.0001824068836 | M61: 5.9 | N61: 0.9947028171 | O61: 0.9950994079 | P61: 0.0003965907682 | Q61: 0.0003965907682 | V61: 0.09267698328 | W61: 0.9957085613 | X61: 0.9953973041 | Y61: 8.668982877e-05 | Z61: 8.668982877e-05 | AE61: 5.9 | AF61: 0.9947028171 | AG61: 0.9946891067 | AH61: 0.0001150738225 | AI61: 0.0001150738225
D62: 0.09424777961 | E62: 0.9955619646 | F62: 0.9957267522 | G62: 0.0001647876204 | H62: 0.0001647876204 | M62: 6 | N62: 0.9945218954 | O62: 0.994906931 | P62: 0.0003850356581 | Q62: 0.0003850356581 | V62: 0.09424777961 | W62: 0.9955619646 | X62: 0.9952588085 | Y62: 8.940292768e-05 | Z62: 8.940292768e-05 | AE62: 6 | AF62: 0.9945218954 | AG62: 0.994512884 | AH62: 0.0001159592794 | AI62: 0.0001159592794
D63: 0.09581857593 | E63: 0.9954129114 | F63: 0.9955602962 | G63: 0.000147384731 | H63: 0.000147384731 | M63: 6.1 | N63: 0.9943379441 | O63: 0.9947115868 | P63: 0.000373642658 | Q63: 0.000373642658 | V63: 0.09581857593 | W63: 0.9954129114 | X63: 0.9951177248 | Y63: 9.202080143e-05 | Z63: 9.202080143e-05 | AE63: 6.1 | AF63: 0.9943379441 | AG63: 0.9943335023 | AH63: 0.0001167624686 | AI63: 0.0001167624686
D64: 0.09738937226 | E64: 0.9952614022 | F64: 0.9953916001 | G64: 0.0001301978476 | H64: 0.0001301978476 | M64: 6.2 | N64: 0.994150964 | O64: 0.9945133752 | P64: 0.0003624112075 | Q64: 0.0003624112075 | V64: 0.09738937226 | W64: 0.9952614022 | X64: 0.9949740546 | Y64: 9.454465459e-05 | Z64: 9.454465459e-05 | AE64: 6.2 | AF64: 0.994150964 | AG64: 0.994150964 | AH64: 0.0001174848291 | AI64: 0.0001174848291
D65: 0.09896016859 | E65: 0.9951074373 | F65: 0.9952206639 | G65: 0.0001132265965 | H65: 0.0001132265965 | M65: 6.3 | N65: 0.9939609555 | O65: 0.9943122962 | P65: 0.0003513407371 | Q65: 0.0003513407371 | V65: 0.09896016859 | W65: 0.9951074373 | X65: 0.9948277995 | Y65: 9.697568572e-05 | Z65: 9.697568572e-05 | AE65: 6.3 | AF65: 0.9939609555 | AG65: 0.9939652711 | AH65: 0.0001181277903 | AI65: 0.0001181277903
D66: 0.1005309649 | E66: =COS(x) -> 0.994951017 | F66: =y0*(x-x00)*(x-x000)/(x0-x00)/(x0-x000)+y00*(x-x0)*(x-x000)/(x00-x0)/(x00-x000)+y000*(x-x0)*(x-x00)/(x000-x0)/(x000-x00) -> 0.9950474876 | G66: 9.647059775e-05 | H66: 9.647059775e-05 | M66: 6.4 | N66: =COS(xx*PI()/180) -> 0.9937679192 | O66: =yy0*(xx-xx00)*(xx-xx000)/(xx0-xx00)/(xx0-xx000)+yy00*(xx-xx0)*(xx-xx000)/(xx00-xx0)/(xx00-xx000)+yy000*(xx-xx0)*(xx-xx00)/(xx000-xx0)/(xx000-xx00) -> 0.9941083498 | P66: 0.000340430668 | Q66: 0.000340430668 | V66: 0.1005309649 | W66: =COS(xxx) -> 0.994951017 | X66: =yyy0*(xxx-xxx00)*(xxx-xxx000)*(xxx-xxx0000)/(xxx0-xxx00)/(xxx0-xxx000)/(xxx0-xxx0000)+yyy00*(xxx-xxx0)*(xxx-xxx000)*(xxx-xxx0000)/(xxx00-xxx0)/(xxx00-xxx000)/(xxx00-xxx0000)+yyy000*(xxx-xxx0)*(xxx-xxx00)*(xxx-xxx0000)/(xxx000-xxx0)/(xxx000-xxx00)/(xxx000-xxx0000)+yyy0000*(xxx-xxx0)*(xxx-xxx00)*(xxx-xxx000)/(xxx0000-xxx0)/(xxx0000-xxx00)/(xxx0000-xxx000) -> 0.9946789612 | Y66: 9.931508729e-05 | Z66: 9.931508729e-05 | AE66: 6.4 | AF66: =COS(xxxx*PI()/180) -> 0.9937679192 | AG66: =yyyy0*(xxxx-xxxx00)*(xxxx-xxxx000)*(xxxx-xxxx0000)/(xxxx0-xxxx00)/(xxxx0-xxxx000)/(xxxx0-xxxx0000)+yyyy00*(xxxx-xxxx0)*(xxxx-xxxx000)*(xxxx-xxxx0000)/(xxxx00-xxxx0)/(xxxx00-xxxx000)/(xxxx00-xxxx0000)+yyyy000*(xxxx-xxxx0)*(xxxx-xxxx00)*(xxxx-xxxx0000)/(xxxx000-xxxx0)/(xxxx000-xxxx00)/(xxxx000-xxxx0000)+yyyy0000*(xxxx-xxxx0)*(xxxx-xxxx00)*(xxxx-xxxx000)/(xxxx0000-xxxx0)/(xxxx0000-xxxx00)/(xxxx0000-xxxx000) -> 0.993776426 | AH66: 0.0001186927727 | AI66: 0.0001186927727
D67: =D66+dx -> 0.1021017612 | E67: 0.9947921418 | F67: 0.9948720712 | G67: =F67-E67 -> 7.992946535e-05 | H67: =ABS(G67) -> 7.992946535e-05 | M67: =M66+dxx -> 6.5 | N67: 0.9935718557 | O67: 0.9939015361 | P67: =O67-N67 -> 0.0003296804121 | Q67: =ABS(P67) -> 0.0003296804121 | V67: =V66+dxxx0 -> 0.1021017612 | W67: 0.9947921418 | X67: 0.9945275414 | Y67: 0.0001015640457 | Z67: 0.0001015640457 | AE67: 6.5 | AF67: 0.9935718557 | AG67: 0.9935844308 | AH67: 0.0001191811874 | AI67: 0.0001191811874
D68: 0.1036725576 | E68: 0.994630812 | F68: 0.9946944148 | G68: 6.360280731e-05 | H68: 6.360280731e-05 | M68: 6.6 | N68: 0.9933727656 | O68: 0.993691855 | P68: 0.0003190893723 | Q68: 0.0003190893723 | V68: 0.1036725576 | W68: 0.994630812 | X68: 0.9943735417 | Y68: 0.0001037237414 | Z68: 0.0001037237414 | AE68: 6.6 | AF68: 0.9933727656 | AG68: 0.9933892879 | AH68: 0.0001195944365 | AI68: 0.0001195944365
D69: 0.1052433539 | E69: 0.9944670281 | F69: 0.9945145183 | G69: 4.749022558e-05 | H69: 4.749022558e-05 | M69: 6.7 | N69: 0.9931706495 | O69: 0.9934793065 | P69: 0.0003086569419 | Q69: 0.0003086569419 | V69: 0.1052433539 | W69: 0.9944670281 | X69: 0.9942169638 | Y69: 0.0001057953486 | Z69: 0.0001057953486 | AE69: 6.7 | AF69: 0.9931706495 | AG69: 0.9931909993 | AH69: 0.0001199339125 | AI69: 0.0001199339125
D70: 0.1068141502 | E70: 0.9943007904 | F70: 0.9943323817 | G70: 3.159131604e-05 | H70: 3.159131604e-05 | M70: 6.8 | N70: 0.9929655081 | O70: 0.9932638906 | P70: 0.0002983825054 | Q70: 0.0002983825054 | V70: 0.1068141502 | W70: 0.9943007904 | X70: 0.9940578094 | Y70: 0.0001077800355 | Z70: 0.0001077800355 | AE70: 6.8 | AF70: 0.9929655081 | AG70: 0.9929895674 | AH70: 0.0001202009991 | AI70: 0.0001202009991
D71: 0.1083849465 | E71: 0.9941320994 | F71: 0.9941480051 | G71: 1.590566851e-05 | H71: 1.590566851e-05 | M71: 6.9 | N71: 0.9927573419 | O71: 0.9930456074 | P71: 0.0002882654379 | Q71: 0.0002882654379 | V71: 0.1083849465 | W71: 0.9941320994 | X71: 0.99389608 | Y71: 0.0001096789644 | Z71: 0.0001096789644 | AE71: 6.9 | AF71: 0.9927573419 | AG71: 0.9927849943 | AH71: 0.0001203970705 | AI71: 0.0001203970705
D72: 0.1099557429 | E72: 0.9939609555 | F72: 0.9939613883 | G72: 4.328667554e-07 | H72: 4.328667554e-07 | M72: 7 | N72: 0.9925461516 | O72: 0.9928244567 | P72: 0.0002783051053 | Q72: 0.0002783051053 | V72: 0.1099557429 | W72: 0.9939609555 | X72: 0.9937317775 | Y72: 0.0001114932915 | Z72: 0.0001114932915 | AE72: 7 | AF72: 0.9925461516 | AG72: 0.9925772824 | AH72: 0.0001205234917 | AI72: 0.0001205234917
D73: 0.1115265392 | E73: 0.993787359 | F73: 0.9937725315 | G73: -1.48275115e-05 | H73: 1.48275115e-05 | M73: 7.1 | N73: 0.9923319379 | O73: 0.9926004387 | P73: 0.0002685008641 | Q73: 0.0002685008641 | V73: 0.1115265392 | W73: 0.993787359 | X73: 0.9935649033 | Y73: 0.0001132241668 | Z73: 0.0001132241668 | AE73: 7.1 | AF73: 0.9923319379 | AG73: 0.9923664338 | AH73: 0.0001205816188 | AI73: 0.0001205816188
D74: 0.1130973355 | E74: 0.9936113105 | F74: 0.9935814346 | G74: -2.987589458e-05 | H74: 2.987589458e-05 | M74: 7.2 | N74: 0.9921147013 | O74: 0.9923735534 | P74: 0.000258852062 | Q74: 0.000258852062 | V74: 0.1130973355 | W74: 0.9936113105 | X74: 0.9933954592 | Y74: 0.0001148727343 | Z74: 0.0001148727343 | AE74: 7.2 | AF74: 0.9921147013 | AG74: 0.9921524508 | AH74: 0.0001205727982 | AI74: 0.0001205727982
D75: 0.1146681319 | E75: 0.9934328104 | F75: 0.9933880977 | G75: -4.471271687e-05 | H75: 4.471271687e-05 | M75: 7.3 | N75: 0.9918944426 | O75: 0.9921438006 | P75: 0.0002493580371 | Q75: 0.0002493580371 | V75: 0.1146681319 | W75: 0.9934328104 | X75: 0.9932234469 | Y75: 0.000116440132 | Z75: 0.000116440132 | AE75: 7.3 | AF75: 0.9918944426 | AG75: 0.9919353355 | AH75: 0.0001204983674 | AI75: 0.0001204983674
D76: 0.1162389282 | E76: 0.993251859 | F76: 0.9931925206 | G76: -5.933841881e-05 | H76: 5.933841881e-05 | M76: 7.4 | N76: 0.9916711624 | O76: 0.9919111805 | P76: 0.0002400181185 | Q76: 0.0002400181185 | V76: 0.1162389282 | W76: 0.993251859 | X76: 0.993048868 | Y76: 0.000117927492 | Z76: 0.000117927492 | AE76: 7.4 | AF76: 0.9916711624 | AG76: 0.9917150903 | AH76: 0.0001203596548 | AI76: 0.0001203596548
D77: 0.1178097245 | E77: 0.993068457 | F77: 0.9929947035 | G77: -7.375344688e-05 | H77: 7.375344688e-05 | M77: 7.5 | N77: 0.9914448614 | O77: 0.991675693 | P77: 0.0002308316261 | Q77: 0.0002308316261 | V77: 0.1178097245 | W77: 0.993068457 | X77: 0.9928717242 | Y77: 0.00011933594 | Z77: 0.00011933594 | AE77: 7.5 | AF77: 0.9914448614 | AG77: 0.9914917173 | AH77: 0.0001201579793 | AI77: 0.0001201579793
D78: 0.1193805208 | E78: 0.9928826046 | F78: 0.9927946463 | G78: -8.795825359e-05 | H78: 8.795825359e-05 | M78: 7.6 | N78: 0.9912155403 | O78: 0.9914373381 | P78: 0.0002217978705 | Q78: 0.0002217978705 | V78: 0.1193805208 | W78: 0.9928826046 | X78: 0.9926920171 | Y78: 0.0001206665959 | Z78: 0.0001206665959 | AE78: 7.6 | AF78: 0.9912155403 | AG78: 0.9912652187 | AH78: 0.0001198946507 | AI78: 0.0001198946507
D79: 0.1209513172 | E79: 0.9926943023 | F79: 0.992592349 | G79: -0.0001019532975 | H79: 0.0001019532975 | M79: 7.7 | N79: 0.9909831997 | O79: 0.9911961159 | P79: 0.0002129161532 | Q79: 0.0002129161532 | V79: 0.1209513172 | W79: 0.9926943023 | X79: 0.9925097484 | Y79: 0.0001219205735 | Z79: 0.0001219205735 | AE79: 7.7 | AF79: 0.9909831997 | AG79: 0.9910355969 | AH79: 0.0001195709697 | AI79: 0.0001195709697
D80: 0.1225221135 | E80: 0.9925035507 | F80: 0.9923878117 | G80: -0.0001157390433 | H80: 0.0001157390433 | M80: 7.8 | N80: 0.9907478405 | O80: 0.9909520262 | P80: 0.0002041857664 | Q80: 0.0002041857664 | V80: 0.1225221135 | W80: 0.9925035507 | X80: 0.9923249197 | Y80: 0.0001230989806 | Z80: 0.0001230989806 | AE80: 7.8 | AF80: 0.9907478405 | AG80: 0.990802854 | AH80: 0.0001191882278 | AI80: 0.0001191882278
D81: 0.1240929098 | E81: 0.9923103502 | F81: 0.9921810343 | G81: -0.0001293159616 | H81: 0.0001293159616 | M81: 7.9 | N81: 0.9905094632 | O81: 0.9907050692 | P81: 0.0001956059931 | Q81: 0.0001956059931 | V81: 0.1240929098 | W81: 0.9923103502 | X81: 0.9921375328 | Y81: 0.0001242029189 | Z81: 0.0001242029189 | AE81: 7.9 | AF81: 0.9905094632 | AG81: 0.9905669923 | AH81: 0.0001187477071 | AI81: 0.0001187477071
D82: 0.1256637061 | E82: 0.9921147013 | F82: 0.9919720168 | G82: -0.0001426845291 | H82: 0.0001426845291 | M82: 8 | N82: 0.9902680687 | O82: 0.9904552448 | P82: 0.0001871761072 | Q82: 0.0001871761072 | V82: 0.1256637061 | W82: 0.9921147013 | X82: 0.9919475892 | Y82: 0.000125233484 | Z82: 0.000125233484 | AE82: 8 | AF82: 0.9902680687 | AG82: 0.9903280139 | AH82: 0.0001182506808 | AI82: 0.0001182506808
D83: 0.1272345025 | E83: 0.9919166044 | F83: 0.9917607592 | G83: -0.0001558452285 | H83: 0.0001558452285 | M83: 8.1 | N83: 0.9900236577 | O83: 0.9902025531 | P83: 0.0001788953735 | Q83: 0.0001788953735 | V83: 0.1272345025 | W83: 0.9919166044 | X83: 0.9917550907 | Y83: 0.0001261917656 | Z83: 0.0001261917656 | AE83: 8.1 | AF83: 0.9900236577 | AG83: 0.9900859212 | AH83: 0.0001176984126 | AI83: 0.0001176984126
D84: 0.1288052988 | E84: 0.9917160601 | F84: 0.9915472616 | G84: -0.0001687985486 | H84: 0.0001687985486 | M84: 8.2 | N84: 0.9897762309 | O84: 0.989946994 | P84: 0.0001707630473 | Q84: 0.0001707630473 | V84: 0.1288052988 | W84: 0.9917160601 | X84: 0.9915600389 | Y84: 0.0001270788473 | Z84: 0.0001270788473 | AE84: 8.2 | AF84: 0.9897762309 | AG84: 0.9898407163 | AH84: 0.0001170921573 | AI84: 0.0001170921573
D85: 0.1303760951 | E85: 0.9915130688 | F85: 0.9913315238 | G85: -0.0001815449844 | H85: 0.0001815449844 | M85: 8.3 | N85: 0.9895257891 | O85: 0.9896885674 | P85: 0.000162778375 | Q85: 0.000162778375 | V85: 0.1303760951 | W85: 0.9915130688 | X85: 0.9913624354 | Y85: 0.0001278958066 | Z85: 0.0001278958066 | AE85: 8.3 | AF85: 0.9895257891 | AG85: 0.9895924015 | AH85: 0.0001164331603 | AI85: 0.0001164331603
D86: 0.1319468915 | E86: 0.9913076311 | F86: 0.991113546 | G86: -0.0001940850365 | H86: 0.0001940850365 | M86: 8.4 | N86: 0.989272333 | O86: 0.9894272736 | P86: 0.0001549405937 | Q86: 0.0001549405937 | V86: 0.1319468915 | W86: 0.9913076311 | X86: 0.9911622819 | Y86: 0.000128643715 | Z86: 0.000128643715 | AE86: 8.4 | AF86: 0.989272333 | AG86: 0.989340979 | AH86: 0.0001157226579 | AI86: 0.0001157226579
D87: 0.1335176878 | E87: 0.9910997474 | F87: 0.9908933282 | G87: -0.0002064192119 | H87: 0.0002064192119 | M87: 8.5 | N87: 0.9890158634 | O87: 0.9891631123 | P87: 0.0001472489313 | Q87: 0.0001472489313 | V87: 0.1335176878 | W87: 0.9910997474 | X87: 0.9909595801 | Y87: 0.0001293236379 | Z87: 0.0001293236379 | AE87: 8.5 | AF87: 0.9890158634 | AG87: 0.989086451 | AH87: 0.0001149618772 | AI87: 0.0001149618772
D88: 0.1350884841 | E88: 0.9908894182 | F88: 0.9906708702 | G88: -0.0002185480236 | H88: 0.0002185480236 | M88: 8.6 | N88: 0.988756381 | O88: 0.9888960837 | P88: 0.0001397026065 | Q88: 0.0001397026065 | V88: 0.1350884841 | W88: 0.9908894182 | X88: 0.9907543317 | Y88: 0.000129936635 | Z88: 0.000129936635 | AE88: 8.6 | AF88: 0.988756381 | AG88: 0.9888288198 | AH88: 0.0001141520363 | AI88: 0.0001141520363
D89: 0.1366592804 | E89: 0.9906766442 | F89: 0.9904461722 | G89: -0.0002304719905 | H89: 0.0002304719905 | M89: 8.7 | N89: 0.9884938868 | O89: 0.9886261876 | P89: 0.000132300829 | Q89: 0.000132300829 | V89: 0.1366592804 | W89: 0.9906766442 | X89: 0.9905465382 | Y89: 0.0001304837594 | Z89: 0.0001304837594 | AE89: 8.7 | AF89: 0.9884938868 | AG89: 0.9885680875 | AH89: 0.0001132943437 | AI89: 0.0001132943437
D90: 0.1382300768 | E90: 0.9904614257 | F90: 0.9902192341 | G90: -0.0002421916376 | H90: 0.0002421916376 | M90: 8.8 | N90: 0.9882283814 | O90: 0.9883534242 | P90: 0.0001250427991 | Q90: 0.0001250427991 | V90: 0.1382300768 | W90: 0.9904614257 | X90: 0.9903362014 | Y90: 0.0001309660587 | Z90: 0.0001309660587 | AE90: 8.8 | AF90: 0.9882283814 | AG90: 0.9883042565 | AH90: 0.0001123899992 | AI90: 0.0001123899992
D91: 0.1398008731 | E91: 0.9902437634 | F91: 0.9899900559 | G91: -0.000253707496 | H91: 0.000253707496 | M91: 8.9 | N91: 0.9879598658 | O91: 0.9880777935 | P91: 0.0001179277081 | Q91: 0.0001179277081 | V91: 0.1398008731 | W91: 0.9902437634 | X91: 0.9901233229 | Y91: 0.0001313845741 | Z91: 0.0001313845741 | AE91: 8.9 | AF91: 0.9879598658 | AG91: 0.9880373289 | AH91: 0.0001114401931 | AI91: 0.0001114401931
D92: 0.1413716694 | E92: 0.9900236577 | F92: 0.9897586376 | G92: -0.0002650201026 | H92: 0.0002650201026 | M92: 9 | N92: 0.9876883406 | O92: 0.9877992953 | P92: 0.0001109547379 | Q92: 0.0001109547379 | V92: 0.1413716694 | W92: 0.9900236577 | X92: 0.9899079044 | Y92: 0.000131740341 | Z92: 0.000131740341 | AE92: 9 | AF92: 0.9876883406 | AG92: 0.987767307 | AH92: 0.0001104461067 | AI92: 0.0001104461067
D93: 0.1429424657 | E93: 0.9898011093 | F93: 0.9895249793 | G93: -0.0002761300007 | H93: 0.0002761300007 | M93: 9.1 | N93: 0.9874138068 | O93: 0.9875179298 | P93: 0.0001041230616 | Q93: 0.0001041230616 | V93: 0.1429424657 | W93: 0.9898011093 | X93: 0.9896899476 | Y93: 0.0001320343887 | Z93: 0.0001320343887 | AE93: 9.1 | AF93: 0.9874138068 | AG93: 0.987494193 | AH93: 0.000109408912 | AI93: 0.000109408912
D94: 0.1445132621 | E94: 0.9895761186 | F94: 0.9892890809 | G94: -0.0002870377392 | H94: 0.0002870377392 | M94: 9.2 | N94: 0.9871362651 | O94: 0.9872336969 | P94: 9.743184278e-05 | Q94: 9.743184278e-05 | V94: 0.1445132621 | W94: 0.9895761186 | X94: 0.989469454 | Y94: 0.0001322677403 | Z94: 0.0001322677403 | AE94: 9.2 | AF94: 0.9871362651 | AG94: 0.9872179891 | AH94: 0.000108329772 | AI94: 0.000108329772
D95: 0.1460840584 | E95: 0.9893486862 | F95: 0.9890509424 | G95: -0.0002977438734 | H95: 0.0002977438734 | M95: 9.3 | N95: 0.9868557164 | O95: 0.9869465966 | P95: 9.088023604e-05 | Q95: 9.088023604e-05 | V95: 0.1460840584 | W95: 0.9893486862 | X95: 0.9892464254 | Y95: 0.0001324414132 | Z95: 0.0001324414132 | AE95: 9.3 | AF95: 0.9868557164 | AG95: 0.9869386976 | AH95: 0.0001072098403 | AI95: 0.0001072098403
D96: 0.1476548547 | E96: 0.9891188128 | F96: 0.9888105638 | G96: -0.0003082489645 | H96: 0.0003082489645 | M96: 9.4 | N96: 0.9865721616 | O96: 0.986656629 | P96: 8.446738677e-05 | Q96: 8.446738677e-05 | V96: 0.1476548547 | W96: 0.9891188128 | X96: 0.9890208635 | Y96: 0.0001325564185 | Z96: 0.0001325564185 | AE96: 9.4 | AF96: 0.9865721616 | AG96: 0.9866563207 | AH96: 0.0001060502616 | AI96: 0.0001060502616
D97: 0.149225651 | E97: 0.9888864987 | F97: 0.9885679452 | G97: -0.0003185535795 | H97: 0.0003185535795 | M97: 9.5 | N97: 0.9862856015 | O97: 0.986363794 | P97: 7.819243123e-05 | Q97: 7.819243123e-05 | V97: 0.149225651 | W97: 0.9888864987 | X97: 0.9887927698 | Y97: 0.0001326137614 | Z97: 0.0001326137614 | AE97: 9.5 | AF97: 0.9862856015 | AG97: 0.9863708605 | AH97: 0.0001048521714 | AI97: 0.0001048521714
D98: 0.1507964474 | E98: 0.9886517447 | F98: 0.9883230864 | G98: -0.0003286582917 | H98: 0.0003286582917 | M98: 9.6 | N98: 0.9859960371 | O98: 0.9860680916 | P98: 7.205449649e-05 | Q98: 7.205449649e-05 | V98: 0.1507964474 | W98: 0.9886517447 | X98: 0.988562146 | Y98: 0.0001326144411 | Z98: 0.0001326144411 | AE98: 9.6 | AF98: 0.9859960371 | AG98: 0.9860823194 | AH98: 0.0001036166958 | AI98: 0.0001036166958
D99: 0.1523672437 | E99: 0.9884145513 | F99: 0.9880759877 | G99: -0.0003385636804 | H99: 0.0003385636804 | M99: 9.7 | N99: 0.9857034691 | O99: 0.9857695218 | P99: 6.60527005e-05 | Q99: 6.60527005e-05 | V99: 0.1523672437 | W99: 0.9884145513 | X99: 0.9883289939 | Y99: 0.0001325594507 | Z99: 0.0001325594507 | AE99: 9.7 | AF99: 0.9857034691 | AG99: 0.9857906996 | AH99: 0.000102344952 | AI99: 0.000102344952
D100: 0.15393804 | E100: 0.9881749191 | F100: 0.9878266488 | G100: -0.0003482703308 | H100: 0.0003482703308 | M100: 9.8 | N100: 0.9854078985 | O100: 0.9854680846 | P100: 6.018615205e-05 | Q100: 6.018615205e-05 | V100: 0.15393804 | W100: 0.9881749191 | X100: 0.988093315 | Y100: 0.0001324497774 | Z100: 0.0001324497774 | AE100: 9.8 | AF100: 0.9854078985 | AG100: 0.9854960033 | AH100: 0.0001010380481 | AI100: 0.0001010380481
D101: 0.1555088364 | E101: 0.9879328487 | F101: 0.9875750698 | G101: -0.0003577788341 | H101: 0.0003577788341 | M101: 9.9 | N101: 0.9851093262 | O101: 0.9851637801 | P101: 5.445395076e-05 | Q101: 5.445395076e-05 | V101: 0.1555088364 | W101: 0.9879328487 | X101: 0.9878551111 | Y101: 0.0001322864022 | Z101: 0.0001322864022 | AE101: 9.9 | AF101: 0.9851093262 | AG101: 0.9851982327 | AH101: 9.969708269e-05 | AI101: 9.969708269e-05
D102: 0.1570796327 | E102: 0.9876883406 | F102: 0.9873212508 | G102: -0.0003670897877 | H102: 0.0003670897877 | M102: 10 | N102: 0.984807753 | O102: 0.9848566082 | P102: 4.885518715e-05 | Q102: 4.885518715e-05 | V102: 0.1570796327 | W102: 0.9876883406 | X102: 0.9876143837 | Y102: 0.0001320703002 | Z102: 0.0001320703002 | AE102: 10 | AF102: 0.984807753 | AG102: 0.9848973901 | AH102: 9.83231456e-05 | AI102: 9.83231456e-05
D103: 0.158650429 | E103: 0.9874413955 | F103: 0.9870651917 | G103: -0.0003762037949 | H103: 0.0003762037949 | M103: 10.1 | N103: 0.98450318 | O103: 0.9845465689 | P103: 4.338894256e-05 | Q103: 4.338894256e-05 | V103: 0.158650429 | W103: 0.9874413955 | X103: 0.9873711346 | Y103: 0.0001318024405 | Z103: 0.0001318024405 | AE103: 10.1 | AF103: 0.98450318 | AG103: 0.9845934776 | AH103: 9.691731735e-05 | AI103: 9.691731735e-05
D104: 0.1602212253 | E104: 0.987192014 | F104: 0.9868068925 | G104: -0.0003851214649 | H104: 0.0003851214649 | M104: 10.2 | N104: 0.984195608 | O104: 0.9842336623 | P104: 3.805428921e-05 | Q104: 3.805428921e-05 | V104: 0.1602212253 | W104: 0.987192014 | X104: 0.9871253654 | Y104: 0.0001314837862 | Z104: 0.0001314837862 | AE104: 10.2 | AF104: 0.984195608 | AG104: 0.9842864976 | AH104: 9.548066934e-05 | AI104: 9.548066934e-05
D105: 0.1617920217 | E105: 0.9869401967 | F105: 0.9865463533 | G105: -0.0003938434131 | H105: 0.0003938434131 | M105: 10.3 | N105: 0.9838850379 | O105: 0.9839178882 | P105: 3.285029019e-05 | Q105: 3.285029019e-05 | V105: 0.1617920217 | W105: 0.9869401967 | X105: 0.9868770777 | Y105: 0.0001311152942 | Z105: 0.0001311152942 | AE105: 10.3 | AF105: 0.9838850379 | AG105: 0.9839764522 | AH105: 9.401426384e-05 | AI105: 9.401426384e-05
D106: 0.163362818 | E106: 0.9866859442 | F106: 0.9862835739 | G106: -0.0004023702608 | H106: 0.0004023702608 | M106: 10.4 | N106: 0.9835714708 | O106: 0.9835992468 | P106: 2.777599945e-05 | Q106: 2.777599945e-05 | V106: 0.163362818 | W106: 0.9866859442 | X106: 0.9866262733 | Y106: 0.0001306979158 | Z106: 0.0001306979158 | AE106: 10.4 | AF106: 0.9835714708 | AG106: 0.9836633437 | AH106: 9.251915397e-05 | AI106: 9.251915397e-05
D107: 0.1649336143 | E107: 0.9864292572 | F107: 0.9860185545 | G107: -0.0004107026355 | H107: 0.0004107026355 | M107: 10.5 | N107: 0.9832549076 | O107: 0.983277738 | P107: 2.28304618e-05 | Q107: 2.28304618e-05 | V107: 0.1649336143 | W107: 0.9864292572 | X107: 0.9863729538 | Y107: 0.0001302325957 | Z107: 0.0001302325957 | AE107: 10.5 | AF107: 0.9832549076 | AG107: 0.9833471742 | AH107: 9.099638376e-05 | AI107: 9.099638376e-05
D108: 0.1665044106 | E108: 0.9861701362 | F108: 0.9857512951 | G108: -0.0004188411703 | H108: 0.0004188411703 | M108: 10.6 | N108: 0.9829353491 | O108: 0.9829533619 | P108: 1.801271294e-05 | Q108: 1.801271294e-05 | V108: 0.1665044106 | W108: 0.9861701362 | X108: 0.9861171208 | Y108: 0.0001297202732 | Z108: 0.0001297202732 | AE108: 10.6 | AF108: 0.9829353491 | AG108: 0.9830279461 | AH108: 8.944698807e-05 | AI108: 8.944698807e-05
D109: 0.168075207 | E109: 0.985908582 | F109: 0.9854817955 | G109: -0.0004267865047 | H109: 0.0004267865047 | M109: 10.7 | N109: 0.9826127965 | O109: 0.9826261183 | P109: 1.332177944e-05 | Q109: 1.332177944e-05 | V109: 0.168075207 | W109: 0.985908582 | X109: 0.9858587761 | Y109: 0.0001291618812 | Z109: 0.0001291618812 | AE109: 10.7 | AF109: 0.9826127965 | AG109: 0.9827056616 | AH109: 8.787199267e-05 | AI109: 8.787199267e-05
D110: 0.1696460033 | E110: 0.9856445951 | F110: 0.9852100559 | G110: -0.000434539284 | H110: 0.000434539284 | M110: 10.8 | N110: 0.9822872507 | O110: 0.9822960074 | P110: 8.756678752e-06 | Q110: 8.756678752e-06 | V110: 0.1696460033 | W110: 0.9856445951 | X110: 0.9855979212 | Y110: 0.0001285583467 | Z110: 0.0001285583467 | AE110: 10.8 | AF110: 0.9822872507 | AG110: 0.9823803228 | AH110: 8.627241419e-05 | AI110: 8.627241419e-05
D111: 0.1712167996 | E111: 0.9853781763 | F111: 0.9849360762 | G111: -0.0004421001596 | H111: 0.0004421001596 | M111: 10.9 | N111: 0.9819587127 | O111: 0.9819630291 | P111: 4.316419198e-06 | Q111: 4.316419198e-06 | V111: 0.1712167996 | W111: 0.9853781763 | X111: 0.9853345578 | Y111: 0.0001279105907 | Z111: 0.0001279105907 | AE111: 10.9 | AF111: 0.9819587127 | AG111: 0.982051932 | AH111: 8.464926014e-05 | AI111: 8.464926014e-05
D112: 0.1727875959 | E112: 0.9851093262 | F112: 0.9846598564 | G112: -0.0004494697888 | H112: 0.0004494697888 | M112: 11 | N112: 0.9816271834 | O112: 0.9816271834 | P112: 0 | Q112: 0 | V112: 0.1727875959 | W112: 0.9851093262 | X112: 0.9850686876 | Y112: 0.0001272195283 | Z112: 0.0001272195283 | AE112: 11 | AF112: 0.9816271834 | AG112: 0.9817204915 | AH112: 8.300352894e-05 | AI112: 8.300352894e-05
D113: 0.1743583923 | E113: 0.9848380453 | F113: 0.9843813965 | G113: -0.0004566488351 | H113: 0.0004566488351 | M113: 11.1 | N113: 0.981292664 | O113: 0.9812884704 | P113: -4.193588739e-06 | Q113: 4.193588739e-06 | V113: 0.1743583923 | W113: 0.9848380453 | X113: 0.9848003123 | Y113: 0.0001264860684 | Z113: 0.0001264860684 | AE113: 11.1 | AF113: 0.981292664 | AG113: 0.9813860035 | AH113: 8.133620986e-05 | AI113: 8.133620986e-05
D114: 0.1759291886 | E114: 0.9845643345 | F114: 0.9841006966 | G114: -0.0004636379678 | H114: 0.0004636379678 | M114: 11.2 | N114: 0.9809551553 | O114: 0.98094689 | P114: -8.265366023e-06 | Q114: 8.265366023e-06 | V114: 0.1759291886 | W114: 0.9845643345 | X114: 0.9845294335 | Y114: 0.0001257111141 | Z114: 0.0001257111141 | AE114: 11.2 | AF114: 0.9809551553 | AG114: 0.9810484701 | AH114: 7.96482831e-05 | AI114: 7.96482831e-05
D115: 0.1774999849 | E115: 0.9842881944 | F115: 0.9838177565 | G115: -0.0004704378621 | H115: 0.0004704378621 | M115: 11.3 | N115: 0.9806146585 | O115: 0.9806024422 | P115: -1.221635996e-05 | Q115: 1.221635996e-05 | V115: 0.1774999849 | W115: 0.9842881944 | X115: 0.9842560529 | Y115: 0.0001248955624 | Z115: 0.0001248955624 | AE115: 11.3 | AF115: 0.9806146585 | AG115: 0.9807078937 | AH115: 7.794071973e-05 | AI115: 7.794071973e-05
D116: 0.1790707813 | E116: 0.9840096257 | F116: 0.9835325765 | G116: -0.0004770491996 | H116: 0.0004770491996 | M116: 11.4 | N116: 0.9802711746 | O116: 0.980255127 | P116: -1.604760777e-05 | Q116: 1.604760777e-05 | V116: 0.1790707813 | W116: 0.9840096257 | X116: 0.9839801721 | Y116: 0.0001240403042 | Z116: 0.0001240403042 | AE116: 11.4 | AF116: 0.9802711746 | AG116: 0.9803642764 | AH116: 7.621448172e-05 | AI116: 7.621448172e-05
D117: 0.1806415776 | E117: 0.9837286289 | F117: 0.9832451563 | G117: -0.0004834726675 | H117: 0.0004834726675 | M117: 11.5 | N117: 0.9799247046 | O117: 0.9799049445 | P117: -1.976015575e-05 | Q117: 1.976015575e-05 | V117: 0.1806415776 | W117: 0.9837286289 | X117: 0.9837017928 | Y117: 0.0001231462247 | Z117: 0.0001231462247 | AE117: 11.5 | AF117: 0.9799247046 | AG117: 0.9800176206 | AH117: 7.447052194e-05 | AI117: 7.447052194e-05
D118: 0.1822123739 | E118: 0.983445205 | F118: 0.982955496 | G118: -0.0004897089591 | H118: 0.0004897089591 | M118: 11.6 | N118: 0.9795752496 | O118: 0.9795518945 | P118: -2.335505932e-05 | Q118: 2.335505932e-05 | V118: 0.1822123739 | W118: 0.983445205 | X118: 0.9834209166 | Y118: 0.0001222142029 | Z118: 0.0001222142029 | AE118: 11.6 | AF118: 0.9795752496 | AG118: 0.9796679283 | AH118: 7.270978418e-05 | AI118: 7.270978418e-05
D119: 0.1837831702 | E119: 0.9831593545 | F119: 0.9826635957 | G119: -0.0004957587738 | H119: 0.0004957587738 | M119: 11.7 | N119: 0.9792228106 | O119: 0.9791959772 | P119: -2.683338298e-05 | Q119: 2.683338298e-05 | V119: 0.1837831702 | W119: 0.9831593545 | X119: 0.9831375453 | Y119: 0.0001212451118 | Z119: 0.0001212451118 | AE119: 11.7 | AF119: 0.9792228106 | AG119: 0.9793152018 | AH119: 7.093320313e-05 | AI119: 7.093320313e-05
D120: 0.1853539666 | E120: 0.9828710781 | F120: 0.9823694553 | G120: -0.0005016228168 | H120: 0.0005016228168 | M120: 11.8 | N120: 0.9788673888 | O120: 0.9788371926 | P120: -3.019620032e-05 | Q120: 3.019620032e-05 | V120: 0.1853539666 | W120: 0.9828710781 | X120: 0.9828516804 | Y120: 0.0001202398185 | Z120: 0.0001202398185 | AE120: 11.8 | AF120: 0.9788673888 | AG120: 0.9789594435 | AH120: 6.914170437e-05 | AI120: 6.914170437e-05
D121: 0.1869247629 | E121: 0.9825803766 | F121: 0.9820730748 | G121: -0.0005073017996 | H121: 0.0005073017996 | M121: 11.9 | N121: 0.9785089851 | O121: 0.9784755405 | P121: -3.344459401e-05 | Q121: 3.344459401e-05 | V121: 0.1869247629 | W121: 0.9825803766 | X121: 0.9825633237 | Y121: 0.0001191991841 | Z121: 0.0001191991841 | AE121: 11.9 | AF121: 0.9785089851 | AG121: 0.9786006554 | AH121: 6.733620442e-05 | AI121: 6.733620442e-05
D122: 0.1884955592 | E122: 0.9822872507 | F122: 0.9817744543 | G122: -0.0005127964392 | H122: 0.0005127964392 | M122: 12 | N122: 0.9781476007 | O122: 0.9781110211 | P122: -3.657965581e-05 | Q122: 3.657965581e-05 | V122: 0.1884955592 | W122: 0.9822872507 | X122: 0.9822724768 | Y122: 0.0001181240636 | Z122: 0.0001181240636 | AE122: 12 | AF122: 0.9781476007 | AG122: 0.9782388398 | AH122: 6.55176107e-05 | AI122: 6.55176107e-05
D123: 0.1900663555 | E123: 0.9819917011 | F123: 0.9814735937 | G123: -0.0005181074591 | H123: 0.0005181074591 | M123: 12.1 | N123: 0.9777832368 | O123: 0.9777436343 | P123: -3.960248656e-05 | Q123: 3.960248656e-05 | V123: 0.1900663555 | W123: 0.9819917011 | X123: 0.9819791413 | Y123: 0.0001170153062 | Z123: 0.0001170153062 | AE123: 12.1 | AF123: 0.9777832368 | AG123: 0.977873999 | AH123: 6.368682156e-05 | AI123: 6.368682156e-05
D124: 0.1916371519 | E124: 0.9816937285 | F124: 0.981170493 | G124: -0.0005232355884 | H124: 0.0005232355884 | M124: 12.2 | N124: 0.9774158943 | O124: 0.9773733801 | P124: -4.251419619e-05 | Q124: 4.251419619e-05 | V124: 0.1916371519 | W124: 0.9816937285 | X124: 0.981683319 | Y124: 0.0001158737549 | Z124: 0.0001158737549 | AE124: 12.2 | AF124: 0.9774158943 | AG124: 0.9775061352 | AH124: 6.184472628e-05 | AI124: 6.184472628e-05
D125: 0.1932079482 | E125: 0.9813933337 | F125: 0.9808651522 | G125: -0.0005281815624 | H125: 0.0005281815624 | M125: 12.3 | N125: 0.9770455744 | O125: 0.9770002585 | P125: -4.531590367e-05 | Q125: 4.531590367e-05 | V125: 0.1932079482 | W125: 0.9813933337 | X125: 0.9813850114 | Y125: 0.0001147002471 | Z125: 0.0001147002471 | AE125: 12.3 | AF125: 0.9770455744 | AG125: 0.9771352506 | AH125: 5.999220504e-05 | AI125: 5.999220504e-05
D126: 0.1947787445 | E126: 0.9810905174 | F126: 0.9805575713 | G126: -0.0005329461223 | H126: 0.0005329461223 | M126: 12.4 | N126: 0.9766722783 | O126: 0.9766242696 | P126: -4.800873707e-05 | Q126: 4.800873707e-05 | V126: 0.1947787445 | W126: 0.9810905174 | X126: 0.9810842203 | Y126: 0.0001134956138 | Z126: 0.0001134956138 | AE126: 12.4 | AF126: 0.9766722783 | AG126: 0.9767613474 | AH126: 5.813012898e-05 | AI126: 5.813012898e-05
D127: 0.1963495408 | E127: 0.9807852804 | F127: 0.9802477504 | G127: -0.0005375300151 | H127: 0.0005375300151 | M127: 12.5 | N127: 0.9762960071 | O127: 0.9762454133 | P127: -5.059383351e-05 | Q127: 5.059383351e-05 | V127: 0.1963495408 | W127: 0.9807852804 | X127: 0.9807809473 | Y127: 0.0001122606802 | Z127: 0.0001122606802 | AE127: 12.5 | AF127: 0.9762960071 | AG127: 0.9763844279 | AH127: 5.625936016e-05 | AI127: 5.625936016e-05
D128: 0.1979203372 | E128: 0.9804776234 | F128: 0.9799356894 | G128: -0.0005419339942 | H128: 0.0005419339942 | M128: 12.6 | N128: 0.9759167619 | O128: 0.9758636896 | P128: -5.307233918e-05 | Q128: 5.307233918e-05 | V128: 0.1979203372 | W128: 0.9804776234 | X128: 0.980475194 | Y128: 0.0001109962656 | Z128: 0.0001109962656 | AE128: 12.6 | AF128: 0.9759167619 | AG128: 0.9760044943 | AH128: 5.438075157e-05 | AI128: 5.438075157e-05
D129: 0.1994911335 | E129: 0.9801675471 | F129: 0.9796213883 | G129: -0.0005461588185 | H129: 0.0005461588185 | M129: 12.7 | N129: 0.9755345439 | O129: 0.9754790985 | P129: -5.544540932e-05 | Q129: 5.544540932e-05 | V129: 0.1994911335 | W129: 0.9801675471 | X129: 0.9801669622 | Y129: 0.0001097031832 | Z129: 0.0001097031832 | AE129: 12.7 | AF129: 0.9755345439 | AG129: 0.9756215488 | AH129: 5.249514716e-05 | AI129: 5.249514716e-05
D130: 0.2010619298 | E130: =COS(x) -> 0.9798550524 | F130: =y0*(x-x00)*(x-x000)/(x0-x00)/(x0-x000)+y00*(x-x0)*(x-x000)/(x00-x0)/(x00-x000)+y000*(x-x0)*(x-x00)/(x000-x0)/(x000-x00) -> 0.9793048471 | G130: -0.0005502052532 | H130: 0.0005502052532 | M130: 12.8 | N130: =COS(xx*PI()/180) -> 0.9751493543 | O130: =yy0*(xx-xx00)*(xx-xx000)/(xx0-xx00)/(xx0-xx000)+yy00*(xx-xx0)*(xx-xx000)/(xx00-xx0)/(xx00-xx000)+yy000*(xx-xx0)*(xx-xx00)/(xx000-xx0)/(xx000-xx00) -> 0.9750916401 | P130: -5.771420824e-05 | Q130: 5.771420824e-05 | V130: 0.2010619298 | W130: =COS(xxx) -> 0.9798550524 | X130: =yyy0*(xxx-xxx00)*(xxx-xxx000)*(xxx-xxx0000)/(xxx0-xxx00)/(xxx0-xxx000)/(xxx0-xxx0000)+yyy00*(xxx-xxx0)*(xxx-xxx000)*(xxx-xxx0000)/(xxx00-xxx0)/(xxx00-xxx000)/(xxx00-xxx0000)+yyy000*(xxx-xxx0)*(xxx-xxx00)*(xxx-xxx0000)/(xxx000-xxx0)/(xxx000-xxx00)/(xxx000-xxx0000)+yyy0000*(xxx-xxx0)*(xxx-xxx00)*(xxx-xxx000)/(xxx0000-xxx0)/(xxx0000-xxx00)/(xxx0000-xxx000) -> 0.9798562534 | Y130: 0.0001083822403 | Z130: 0.0001083822403 | AE130: 12.8 | AF130: =COS(xxxx*PI()/180) -> 0.9751493543 | AG130: =yyyy0*(xxxx-xxxx00)*(xxxx-xxxx000)*(xxxx-xxxx0000)/(xxxx0-xxxx00)/(xxxx0-xxxx000)/(xxxx0-xxxx0000)+yyyy00*(xxxx-xxxx0)*(xxxx-xxxx000)*(xxxx-xxxx0000)/(xxxx00-xxxx0)/(xxxx00-xxxx000)/(xxxx00-xxxx0000)+yyyy000*(xxxx-xxxx0)*(xxxx-xxxx00)*(xxxx-xxxx0000)/(xxxx000-xxxx0)/(xxxx000-xxxx00)/(xxxx000-xxxx0000)+yyyy0000*(xxxx-xxxx0)*(xxxx-xxxx00)*(xxxx-xxxx000)/(xxxx0000-xxxx0)/(xxxx0000-xxxx00)/(xxxx0000-xxxx000) -> 0.9752355937 | AH130: 5.060338181e-05 | AI130: 5.060338181e-05
D131: =D130+dx -> 0.2026327262 | E131: 0.97954014 | F131: 0.9789860659 | G131: =F131-E131 -> -0.0005540740693 | H131: =ABS(G131) -> 0.0005540740693 | M131: =M130+dxx -> 12.9 | N131: 0.9747611942 | O131: 0.9747013143 | P131: =O131-N131 -> -5.987990929e-05 | Q131: =ABS(P131) -> 5.987990929e-05 | V131: =V130+dxxx0 -> 0.2026327262 | W131: 0.97954014 | X131: 0.9795430694 | Y131: 0.0001070342383 | Z131: 0.0001070342383 | AE131: 12.9 | AF131: 0.9747611942 | AG131: 0.9748466312 | AH131: 4.870628136e-05 | AI131: 4.870628136e-05
D132: 0.2042035225 | E132: 0.9792228106 | F132: 0.9786650446 | G132: -0.0005577660438 | H132: 0.0005577660438 | M132: 13 | N132: 0.9743700648 | O132: 0.9743081211 | P132: -6.194369488e-05 | Q132: 6.194369488e-05 | V132: 0.2042035225 | W132: 0.9792228106 | X132: 0.9792274118 | Y132: 0.0001056599725 | Z132: 0.0001056599725 | AE132: 13 | AF132: 0.9743700648 | AG132: 0.9744546634 | AH132: 4.680466258e-05 | AI132: 4.680466258e-05
D133: 0.2057743188 | E133: 0.9789030651 | F133: 0.9783417832 | G133: -0.0005612819597 | H133: 0.0005612819597 | M133: 13.1 | N133: 0.9739759673 | O133: 0.9739120605 | P133: -6.390675645e-05 | Q133: 6.390675645e-05 | V133: 0.2057743188 | W133: 0.9789030651 | X133: 0.9789092823 | Y133: 0.0001042602322 | Z133: 0.0001042602322 | AE133: 13.1 | AF133: 0.9739759673 | AG133: 0.9740596927 | AH133: 4.489933321e-05 | AI133: 4.489933321e-05
D134: 0.2073451151 | E134: 0.9785809043 | F134: 0.9780162817 | G134: -0.000564622606 | H134: 0.000564622606 | M134: 13.2 | N134: 0.9735789029 | O134: 0.9735131326 | P134: -6.577029449e-05 | Q134: 6.577029449e-05 | V134: 0.2073451151 | W134: 0.9785809043 | X134: 0.9785886824 | Y134: 0.000102835801 | Z134: 0.000102835801 | AE134: 13.2 | AF134: 0.9735789029 | AG134: 0.9736617213 | AH134: 4.299109196e-05 | AI134: 4.299109196e-05
D135: 0.2089159115 | E135: 0.978256329 | F135: 0.9776885402 | G135: -0.0005677887775 | H135: 0.0005677887775 | M135: 13.3 | N135: 0.9731788728 | O135: 0.9731113373 | P135: -6.753551853e-05 | Q135: 6.753551853e-05 | V135: 0.2089159115 | W135: 0.978256329 | X135: 0.978265614 | Y135: 0.0001013874562 | Z135: 0.0001013874562 | AE135: 13.3 | AF135: 0.9731788728 | AG135: 0.9732607513 | AH135: 4.108072848e-05 | AI135: 4.108072848e-05
D136: 0.2104867078 | E136: 0.9779293398 | F136: 0.9773585586 | G136: -0.0005707812751 | H136: 0.0005707812751 | M136: 13.4 | N136: 0.9727758782 | O136: 0.9727066746 | P136: -6.920364713e-05 | Q136: 6.920364713e-05 | V136: 0.2104867078 | W136: 0.9779293398 | X136: 0.9779400786 | Y136: 9.991596947e-05 | Z136: 9.991596947e-05 | AE136: 13.4 | AF136: 0.9727758782 | AG136: 0.9728567851 | AH136: 3.916902339e-05 | AI136: 3.916902339e-05
D137: 0.2120575041 | E137: 0.9775999378 | F137: 0.9770263369 | G137: -0.0005736009057 | H137: 0.0005736009057 | M137: 13.5 | N137: 0.9723699204 | O137: 0.9722991445 | P137: -7.077590788e-05 | Q137: 7.077590788e-05 | V137: 0.2120575041 | W137: 0.9775999378 | X137: 0.9776120779 | Y137: 9.842210628e-05 | Z137: 9.842210628e-05 | AE137: 13.5 | AF137: 0.9723699204 | AG137: 0.9724498248 | AH137: 3.725674829e-05 | AI137: 3.725674829e-05
D138: 0.2136283004 | E138: 0.9772681236 | F138: 0.9766918751 | G138: -0.0005762484819 | H138: 0.0005762484819 | M138: 13.6 | N138: 0.9719610006 | O138: 0.971888747 | P138: -7.22535374e-05 | Q138: 7.22535374e-05 | V138: 0.2136283004 | W138: 0.9772681236 | X138: 0.9772816136 | Y138: 9.690662626e-05 | Z138: 9.690662626e-05 | AE138: 13.6 | AF138: 0.9719610006 | AG138: 0.9720398727 | AH138: 3.534466575e-05 | AI138: 3.534466575e-05
D139: 0.2151990968 | E139: 0.9769338981 | F139: 0.9763551732 | G139: -0.0005787248225 | H139: 0.0005787248225 | M139: 13.7 | N139: 0.97154912 | O139: 0.9714754822 | P139: -7.363778133e-05 | Q139: 7.363778133e-05 | V139: 0.2151990968 | W139: 0.9769338981 | X139: 0.9769486873 | Y139: 9.537028305e-05 | Z139: 9.537028305e-05 | AE139: 13.7 | AF139: 0.97154912 | AG139: 0.971626931 | AH139: 3.343352932e-05 | AI139: 3.343352932e-05
D140: 0.2167698931 | E140: 0.9765972621 | F140: 0.9760162313 | G140: -0.0005810307522 | H140: 0.0005810307522 | M140: 13.8 | N140: 0.9711342799 | O140: 0.97105935 | P140: -7.492989433e-05 | Q140: 7.492989433e-05 | V140: 0.2167698931 | W140: 0.9765972621 | X140: 0.9766133008 | Y140: 9.381382436e-05 | Z140: 9.381382436e-05 | AE140: 13.8 | AF140: 0.9711342799 | AG140: 0.971211002 | AH140: 3.152408352e-05 | AI140: 3.152408352e-05
D141: 0.2183406894 | E141: 0.9762582164 | F141: 0.9756750493 | G141: -0.0005831671016 | H141: 0.0005831671016 | M141: 13.9 | N141: 0.9707164816 | O141: 0.9706403504 | P141: -7.613114008e-05 | Q141: 7.613114008e-05 | V141: 0.2183406894 | W141: 0.9762582164 | X141: 0.9762754555 | Y141: 9.223799195e-05 | Z141: 9.223799195e-05 | AE141: 13.9 | AF141: 0.9707164816 | AG141: 0.9707920878 | AH141: 2.961706386e-05 | AI141: 2.961706386e-05
D142: 0.2199114858 | E142: 0.9759167619 | F142: 0.9753316272 | G142: -0.0005851347072 | H142: 0.0005851347072 | M142: 14 | N142: 0.9702957263 | O142: 0.9702184835 | P142: -7.724279125e-05 | Q142: 7.724279125e-05 | V142: 0.2199114858 | W142: 0.9759167619 | X142: 0.9759351533 | Y142: 9.064352163e-05 | Z142: 9.064352163e-05 | AE142: 14 | AF142: 0.9702957263 | AG142: 0.9703701907 | AH142: 2.771319684e-05 | AI142: 2.771319684e-05
D143: 0.2214822821 | E143: 0.9755728995 | F143: 0.9749859651 | G143: -0.0005869344116 | H143: 0.0005869344116 | M143: 14.1 | N143: 0.9698720153 | O143: 0.9697937492 | P143: -7.826612956e-05 | Q143: 7.826612956e-05 | V143: 0.2214822821 | W143: 0.9755728995 | X143: 0.9755923957 | Y143: 8.903114326e-05 | Z143: 8.903114326e-05 | AE143: 14.1 | AF143: 0.9698720153 | AG143: 0.9699453129 | AH143: 2.581319996e-05 | AI143: 2.581319996e-05
D144: 0.2230530784 | E144: 0.9752266299 | F144: 0.9746380628 | G144: -0.0005885670632 | H144: 0.0005885670632 | M144: 14.2 | N144: 0.9694453499 | O144: 0.9693661474 | P144: -7.920244568e-05 | Q144: 7.920244568e-05 | V144: 0.2230530784 | W144: 0.9752266299 | X144: 0.9752471845 | Y144: 8.740158077e-05 | Z144: 8.740158077e-05 | AE144: 14.2 | AF144: 0.9694453499 | AG144: 0.9695174567 | AH144: 2.39177817e-05 | AI144: 2.39177817e-05
D145: 0.2246238747 | E145: 0.9748779541 | F145: 0.9742879205 | G145: -0.0005900335163 | H145: 0.0005900335163 | M145: 14.3 | N145: 0.9690157314 | O145: 0.9689356784 | P145: -8.005303932e-05 | Q145: 8.005303932e-05 | V145: 0.2246238747 | W145: 0.9748779541 | X145: 0.9748995212 | Y145: 8.575555214e-05 | Z145: 8.575555214e-05 | AE145: 14.3 | AF145: 0.9690157314 | AG145: 0.9690866243 | AH145: 2.202764156e-05 | AI145: 2.202764156e-05
D146: 0.2261946711 | E146: 0.9745268728 | F146: 0.9739355382 | G146: -0.0005913346314 | H146: 0.0005913346314 | M146: 14.4 | N146: 0.9685831611 | O146: 0.9685023419 | P146: -8.081921917e-05 | Q146: 8.081921917e-05 | V146: 0.2261946711 | W146: 0.9745268728 | X146: 0.9745494076 | Y146: 8.409376942e-05 | Z146: 8.409376942e-05 | AE146: 14.4 | AF146: 0.9685831611 | AG146: 0.9686528178 | AH146: 2.014347003e-05 | AI146: 2.014347003e-05
D147: 0.2277654674 | E147: 0.974173387 | F147: 0.9735809157 | G147: -0.0005924712747 | H147: 0.0005924712747 | M147: 14.5 | N147: 0.9681476404 | O147: 0.9680661381 | P147: -8.150230291e-05 | Q147: 8.150230291e-05 | V147: 0.2277654674 | W147: 0.974173387 | X147: 0.9741968454 | Y147: 8.241693872e-05 | Z147: 8.241693872e-05 | AE147: 14.5 | AF147: 0.9681476404 | AG147: 0.9682160396 | AH147: 1.82659486e-05 | AI147: 1.82659486e-05
D148: 0.2293362637 | E148: 0.9738174975 | F148: 0.9732240532 | G148: -0.0005934443183 | H148: 0.0005934443183 | M148: 14.6 | N148: 0.9677091705 | O148: 0.9676270669 | P148: -8.210361723e-05 | Q148: 8.210361723e-05 | V148: 0.2293362637 | W148: 0.9738174975 | X148: 0.9738418361 | Y148: 8.072576023e-05 | Z148: 8.072576023e-05 | AE148: 14.6 | AF148: 0.9677091705 | AG148: 0.9677762919 | AH148: 1.639574981e-05 | AI148: 1.639574981e-05
D149: 0.23090706 | E149: 0.9734592052 | F149: 0.9728649505 | G149: -0.0005942546403 | H149: 0.0005942546403 | M149: 14.7 | N149: 0.9672677528 | O149: 0.9671851283 | P149: -8.262449776e-05 | Q149: 8.262449776e-05 | V149: 0.23090706 | W149: 0.9734592052 | X149: 0.9734843814 | Y149: 7.90209282e-05 | Z149: 7.90209282e-05 | AE149: 14.7 | AF149: 0.9672677528 | AG149: 0.9673335769 | AH149: 1.453353716e-05 | AI149: 1.453353716e-05
D150: 0.2324778564 | E150: 0.973098511 | F150: 0.9725036079 | G150: -0.0005949031249 | H150: 0.0005949031249 | M150: 14.8 | N150: 0.9668233886 | O150: 0.9667403223 | P150: -8.306628915e-05 | Q150: 8.306628915e-05 | V150: 0.2324778564 | W150: 0.973098511 | X150: 0.973124483 | Y150: 7.730313094e-05 | Z150: 7.730313094e-05 | AE150: 14.8 | AF150: 0.9668233886 | AG150: 0.9668878967 | AH150: 1.267996523e-05 | AI150: 1.267996523e-05
D151: 0.2340486527 | E151: 0.9727354158 | F151: 0.9721400251 | G151: -0.0005953906621 | H151: 0.0005953906621 | M151: 14.9 | N151: 0.9663760793 | O151: 0.966292649 | P151: -8.343034501e-05 | Q151: 8.343034501e-05 | V151: 0.2340486527 | W151: 0.9727354158 | X151: 0.9727621426 | Y151: 7.557305085e-05 | Z151: 7.557305085e-05 | AE151: 14.9 | AF151: 0.9663760793 | AG151: 0.9664392538 | AH151: 1.083567957e-05 | AI151: 1.083567957e-05
D152: 0.235619449 | E152: 0.9723699204 | F152: 0.9717742023 | G152: -0.0005957181476 | H152: 0.0005957181476 | M152: 15 | N152: 0.9659258263 | O152: 0.9658421083 | P152: -8.371802792e-05 | Q152: 8.371802792e-05 | V152: 0.235619449 | W152: 0.9723699204 | X152: 0.9723973618 | Y152: 7.38313644e-05 | Z152: 7.38313644e-05 | AE152: 15 | AF152: 0.9659258263 | AG152: 0.9659876502 | AH152: 9.00131681e-06 | AI152: 9.00131681e-06
D153: 0.2371902453 | E153: 0.9720020258 | F153: 0.9714061393 | G153: -0.0005958864833 | H153: 0.0005958864833 | M153: 15.1 | N153: 0.9654726309 | O153: 0.9653887002 | P153: -8.393070942e-05 | Q153: 8.393070942e-05 | V153: 0.2371902453 | W153: 0.9720020258 | X153: 0.9720301423 | Y153: 7.207874214e-05 | Z153: 7.207874214e-05 | AE153: 15.1 | AF153: 0.9654726309 | AG153: 0.9655330882 | AH153: 7.17750457e-06 | AI153: 7.17750457e-06
D154: 0.2387610417 | E154: 0.9716317329 | F154: 0.9710358363 | G154: -0.0005958965771 | H154: 0.0005958965771 | M154: 15.2 | N154: 0.9650164945 | O154: 0.9649324247 | P154: -8.406977004e-05 | Q154: 8.406977004e-05 | V154: 0.2387610417 | W154: 0.9716317329 | X154: 0.9716604857 | Y154: 7.031584869e-05 | Z154: 7.031584869e-05 | AE154: 15.2 | AF154: 0.9650164945 | AG154: 0.96507557 | AH154: 5.364861531e-06 | AI154: 5.364861531e-06
D155: 0.240331838 | E155: 0.9712590426 | F155: 0.9706632933 | G155: -0.0005957493424 | H155: 0.0005957493424 | M155: 15.3 | N155: 0.9645574185 | O155: 0.9644732819 | P155: -8.413659923e-05 | Q155: 8.413659923e-05 | V155: 0.240331838 | W155: 0.9712590426 | X155: 0.9712883937 | Y155: 6.854334277e-05 | Z155: 6.854334277e-05 | AE155: 15.3 | AF155: 0.9645574185 | AG155: 0.9646150979 | AH155: 3.563997407e-06 | AI155: 3.563997407e-06
D156: 0.2419026343 | E156: 0.9708839558 | F156: 0.9702885101 | G156: -0.000595445699 | H156: 0.000595445699 | M156: 15.4 | N156: 0.9640954042 | O156: 0.9640112716 | P156: -8.413259543e-05 | Q156: 8.413259543e-05 | V156: 0.2419026343 | W156: 0.9708839558 | X156: 0.9709138679 | Y156: 6.676187717e-05 | Z156: 6.676187717e-05 | AE156: 15.4 | AF156: 0.9640954042 | AG156: 0.9641516741 | AH156: 1.77551296e-06 | AI156: 1.77551296e-06
D157: 0.2434734307 | E157: 0.9705064735 | F157: 0.9699114869 | G157: -0.0005949865723 | H157: 0.0005949865723 | M157: 15.5 | N157: 0.9636304532 | O157: 0.963546394 | P157: -8.405916601e-05 | Q157: 8.405916601e-05 | V157: 0.2434734307 | W157: 0.9705064735 | X157: 0.9705369101 | Y157: 6.497209877e-05 | Z157: 6.497209877e-05 | AE157: 15.5 | AF157: 0.9636304532 | AG157: 0.9636853008 | AH157: 0 | AI157: 0
D158: 0.245044227 | E158: 0.9701265965 | F158: 0.9695322236 | G158: -0.0005943728937 | H158: 0.0005943728937 | M158: 15.6 | N158: 0.9631625668 | O158: 0.9630786491 | P158: -8.391772729e-05 | Q158: 8.391772729e-05 | V158: 0.245044227 | W158: 0.9701265965 | X158: 0.9701575219 | Y158: 6.317464855e-05 | Z158: 6.317464855e-05 | AE158: 15.6 | AF158: 0.9631625668 | AG158: 0.9632159803 | AH158: -1.761958607e-06 | AI158: 1.761958607e-06
D159: 0.2466150233 | E159: 0.9697443258 | F159: 0.9691507202 | G159: -0.0005936056005 | H159: 0.0005936056005 | M159: 15.7 | N159: 0.9626917464 | O159: 0.9626080367 | P159: -8.370970454e-05 | Q159: 8.370970454e-05 | V159: 0.2466150233 | W159: 0.9697443258 | X159: 0.9697757049 | Y159: 6.137016156e-05 | Z159: 6.137016156e-05 | AE159: 15.7 | AF159: 0.9626917464 | AG159: 0.9627437147 | AH159: -3.509788939e-06 | AI159: 3.509788939e-06
D160: 0.2481858196 | E160: 0.9693596624 | F160: 0.9687669768 | G160: -0.0005926856359 | H160: 0.0005926856359 | M160: 15.8 | N160: 0.9622179935 | O160: 0.962134557 | P160: -8.343653195e-05 | Q160: 8.343653195e-05 | V160: 0.2481858196 | W160: 0.9693596624 | X160: 0.9693914608 | Y160: 5.955926697e-05 | Z160: 5.955926697e-05 | AE160: 15.8 | AF160: 0.9622179935 | AG160: 0.9622685064 | AH160: -5.242926009e-06 | AI160: 5.242926009e-06
D161: 0.249756616 | E161: 0.9689726072 | F161: 0.9683809932 | G161: -0.000591613949 | H161: 0.000591613949 | M161: 15.9 | N161: 0.9617413095 | O161: 0.9616582099 | P161: -8.309965266e-05 | Q161: 8.309965266e-05 | V161: 0.249756616 | W161: 0.9689726072 | X161: 0.9690047913 | Y161: 5.774258803e-05 | Z161: 5.774258803e-05 | AE161: 15.9 | AF161: 0.9617413095 | AG161: 0.9617903575 | AH161: -6.960813766e-06 | AI161: 6.960813766e-06
D162: 0.2513274123 | E162: 0.9685831611 | F162: 0.9679927696 | G162: -0.000590391495 | H162: 0.000590391495 | M162: 16 | N162: 0.9612616959 | O162: 0.9611789954 | P162: -8.270051873e-05 | Q162: 8.270051873e-05 | V162: 0.2513274123 | W162: 0.9685831611 | X162: 0.968615698 | Y162: 5.592074208e-05 | Z162: 5.592074208e-05 | AE162: 16 | AF162: 0.9612616959 | AG162: 0.9613092702 | AH162: -8.662905084e-06 | AI162: 8.662905084e-06
D163: 0.2528982086 | E163: 0.9681913252 | F163: 0.967602306 | G163: -0.0005890192346 | H163: 0.0005890192346 | M163: 16.1 | N163: 0.9607791542 | O163: 0.9606969136 | P163: -8.224059115e-05 | Q163: 8.224059115e-05 | V163: 0.2528982086 | W163: 0.9681913252 | X163: 0.9682241825 | Y163: 5.409434058e-05 | Z163: 5.409434058e-05 | AE163: 16.1 | AF163: 0.9607791542 | AG163: 0.9608252468 | AH163: -1.034866176e-05 | AI163: 1.034866176e-05
D164: 0.2544690049 | E164: 0.9677971003 | F164: 0.9672096022 | G164: -0.0005874981347 | H164: 0.0005874981347 | M164: 16.2 | N164: 0.9602936857 | O164: 0.9602119643 | P164: -8.172133983e-05 | Q164: 8.172133983e-05 | V164: 0.2544690049 | W164: 0.9677971003 | X164: 0.9678302466 | Y164: 5.226398908e-05 | Z164: 5.226398908e-05 | AE164: 16.2 | AF164: 0.9602936857 | AG164: 0.9603382896 | AH164: -1.201755452e-05 | AI164: 1.201755452e-05
D165: 0.2560398013 | E165: 0.9674004875 | F165: 0.9668146584 | G165: -0.000585829168 | H165: 0.000585829168 | M165: 16.3 | N165: 0.959805292 | O165: 0.9597241477 | P165: -8.114424357e-05 | Q165: 8.114424357e-05 | V165: 0.2560398013 | W165: 0.9674004875 | X165: 0.967433892 | Y165: 5.043028725e-05 | Z165: 5.043028725e-05 | AE165: 16.3 | AF165: 0.959805292 | AG165: 0.9598484007 | AH165: -1.3669063e-05 | AI165: 1.3669063e-05
D166: 0.2576105976 | E166: 0.9670014878 | F166: 0.9664174744 | G166: -0.0005840133131 | H166: 0.0005840133131 | M166: 16.4 | N166: 0.9593139745 | O166: 0.9592334637 | P166: -8.051079013e-05 | Q166: 8.051079013e-05 | V166: 0.2576105976 | W166: 0.9670014878 | X166: 0.9670351201 | Y166: 4.859382886e-05 | Z166: 4.859382886e-05 | AE166: 16.4 | AF166: 0.9593139745 | AG166: 0.9593555823 | AH166: -1.530267574e-05 | AI166: 1.530267574e-05
D167: 0.2591813939 | E167: 0.966600102 | F167: 0.9660180505 | G167: -0.0005820515546 | H167: 0.0005820515546 | M167: 16.5 | N167: 0.9588197349 | O167: 0.9587399124 | P167: -7.982247613e-05 | Q167: 7.982247613e-05 | V167: 0.2591813939 | W167: 0.966600102 | X167: 0.9666339328 | Y167: 4.675520177e-05 | Z167: 4.675520177e-05 | AE167: 16.5 | AF167: 0.9588197349 | AG167: 0.9588598368 | AH167: -1.691789019e-05 | AI167: 1.691789019e-05
D168: 0.2607521902 | E168: 0.9661963313 | F168: 0.9656163864 | G168: -0.0005799448827 | H168: 0.0005799448827 | M168: 16.6 | N168: 0.9583225745 | O168: 0.9582434937 | P168: -7.908080711e-05 | Q168: 7.908080711e-05 | V168: 0.2607521902 | W168: 0.9661963313 | X168: 0.9662303317 | Y168: 4.491498799e-05 | Z168: 4.491498799e-05 | AE168: 16.6 | AF168: 0.9583225745 | AG168: 0.9583611663 | AH168: -1.851421271e-05 | AI168: 1.851421271e-05
D169: 0.2623229866 | E169: 0.9657901766 | F169: 0.9652124823 | G169: -0.0005776942938 | H169: 0.0005776942938 | M169: 16.7 | N169: 0.9578224948 | O169: 0.9577442075 | P169: -7.828729752e-05 | Q169: 7.828729752e-05 | V169: 0.2623229866 | W169: 0.9657901766 | X169: 0.9658243185 | Y169: 4.307376363e-05 | Z169: 4.307376363e-05 | AE169: 16.7 | AF169: 0.9578224948 | AG169: 0.9578595731 | AH169: -2.009115855e-05 | AI169: 2.009115855e-05
D170: 0.2638937829 | E170: 0.9653816388 | F170: 0.964806338 | G170: -0.0005753007899 | H170: 0.0005753007899 | M170: 16.8 | N170: 0.9573194975 | O170: 0.9572420541 | P170: -7.744347067e-05 | Q170: 7.744347067e-05 | V170: 0.2638937829 | W170: 0.9653816388 | X170: 0.9654158947 | Y170: 4.12320989e-05 | Z170: 4.12320989e-05 | AE170: 16.8 | AF170: 0.9573194975 | AG170: 0.9573550593 | AH170: -2.164825184e-05 | AI170: 2.164825184e-05
D171: 0.2654645792 | E171: 0.9649707191 | F171: 0.9643979538 | G171: -0.0005727653792 | H171: 0.0005727653792 | M171: 16.9 | N171: 0.9568135841 | O171: 0.9567370332 | P171: -7.65508588e-05 | Q171: 7.65508588e-05 | V171: 0.2654645792 | W171: 0.9649707191 | X171: 0.9650050621 | Y171: 3.939055815e-05 | Z171: 3.939055815e-05 | AE171: 16.9 | AF171: 0.9568135841 | AG171: 0.9568476273 | AH171: -2.318502563e-05 | AI171: 2.318502563e-05
D172: 0.2670353756 | E172: 0.9645574185 | F172: 0.9639873294 | G172: -0.0005700890755 | H172: 0.0005700890755 | M172: 17 | N172: 0.956304756 | O172: 0.956229145 | P172: -7.561100299e-05 | Q172: 7.561100299e-05 | V172: 0.2670353756 | W172: 0.9645574185 | X172: 0.9645918224 | Y172: 3.754969986e-05 | Z172: 3.754969986e-05 | AE172: 17 | AF172: 0.956304756 | AG172: 0.9563372792 | AH172: -2.470102182e-05 | AI172: 2.470102182e-05
D173: 0.2686061719 | E173: 0.9641417378 | F173: 0.9635744649 | G173: -0.0005672728987 | H173: 0.0005672728987 | M173: 17.1 | N173: 0.9557930148 | O173: 0.9557183893 | P173: -7.462545323e-05 | Q173: 7.462545323e-05 | V173: 0.2686061719 | W173: 0.9641417378 | X173: 0.9641761771 | Y173: 3.57100766e-05 | Z173: 3.57100766e-05 | AE173: 17.1 | AF173: 0.9557930148 | AG173: 0.9558240173 | AH173: -2.619579121e-05 | AI173: 2.619579121e-05
D174: 0.2701769682 | E174: 0.9637236783 | F174: 0.9631593604 | G174: -0.0005643178742 | H174: 0.0005643178742 | M174: 17.2 | N174: 0.9552783621 | O174: 0.9552047664 | P174: -7.359576836e-05 | Q174: 7.359576836e-05 | V174: 0.2701769682 | W174: 0.9637236783 | X174: 0.963758128 | Y174: 3.387223511e-05 | Z174: 3.387223511e-05 | AE174: 17.2 | AF174: 0.9552783621 | AG174: 0.9553078438 | AH174: -2.766889347e-05 | AI174: 2.766889347e-05
D175: 0.2717477645 | E175: 0.9633032409 | F175: 0.9627420158 | G175: -0.0005612250338 | H175: 0.0005612250338 | M175: 17.3 | N175: 0.9547607995 | O175: 0.954688276 | P175: -7.252351612e-05 | Q175: 7.252351612e-05 | V175: 0.2717477645 | W175: 0.9633032409 | X175: 0.9633376767 | Y175: 3.203671624e-05 | Z175: 3.203671624e-05 | AE175: 17.3 | AF175: 0.9547607995 | AG175: 0.954788761 | AH175: -2.911989712e-05 | AI175: 2.911989712e-05
D176: 0.2733185609 | E176: 0.9628804266 | F176: 0.9623224311 | G176: -0.0005579954147 | H176: 0.0005579954147 | M176: 17.4 | N176: 0.9542403285 | O176: 0.9541689182 | P176: -7.141027308e-05 | Q176: 7.141027308e-05 | V176: 0.2733185609 | W176: 0.9628804266 | X176: 0.9629148248 | Y176: 3.020405496e-05 | Z176: 3.020405496e-05 | AE176: 17.4 | AF176: 0.9542403285 | AG176: 0.954266771 | AH176: -3.054837957e-05 | AI176: 3.054837957e-05
D177: 0.2748893572 | E177: 0.9624552365 | F177: 0.9619006064 | G177: -0.0005546300602 | H177: 0.0005546300602 | M177: 17.5 | N177: 0.9537169507 | O177: 0.9536466931 | P177: -7.025762469e-05 | Q177: 7.025762469e-05 | V177: 0.2748893572 | W177: 0.9624552365 | X177: 0.9624895741 | Y177: 2.83747804e-05 | Z177: 2.83747804e-05 | AE177: 17.5 | AF177: 0.9537169507 | AG177: 0.953741876 | AH177: -3.195392707e-05 | AI177: 3.195392707e-05
D178: 0.2764601535 | E178: 0.9620276716 | F178: 0.9614765416 | G178: -0.0005511300195 | H178: 0.0005511300195 | M178: 17.6 | N178: 0.9531906678 | O178: 0.9531216006 | P178: -6.906716525e-05 | Q178: 6.906716525e-05 | V178: 0.2764601535 | W178: 0.9620276716 | X178: 0.9620619262 | Y178: 2.654941582e-05 | Z178: 2.654941582e-05 | AE178: 17.6 | AF178: 0.9531906678 | AG178: 0.9532140784 | AH178: -3.333613475e-05 | AI178: 3.333613475e-05
D179: 0.2780309498 | E179: 0.961597733 | F179: 0.9610502367 | G179: -0.0005474963474 | H179: 0.0005474963474 | M179: 17.7 | N179: 0.9526614813 | O179: 0.9525936408 | P179: -6.784049791e-05 | Q179: 6.784049791e-05 | V179: 0.2780309498 | W179: 0.961597733 | X179: 0.9616318827 | Y179: 2.472847861e-05 | Z179: 2.472847861e-05 | AE179: 17.7 | AF179: 0.9526614813 | AG179: 0.9526833804 | AH179: -3.469460655e-05 | AI179: 3.469460655e-05
D180: 0.2796017462 | E180: 0.9611654218 | F180: 0.9606216917 | G180: -0.0005437301049 | H180: 0.0005437301049 | M180: 17.8 | N180: 0.9521293927 | O180: 0.9520628135 | P180: -6.657923466e-05 | Q180: 6.657923466e-05 | V180: 0.2796017462 | W180: 0.9611654218 | X180: 0.9611994454 | Y180: 2.291248031e-05 | Z180: 2.291248031e-05 | AE180: 17.8 | AF180: 0.9521293927 | AG180: 0.9521497841 | AH180: -3.60289553e-05 | AI180: 3.60289553e-05
D181: 0.2811725425 | E181: 0.960730739 | F181: 0.9601909066 | G181: -0.0005398323586 | H181: 0.0005398323586 | M181: 17.9 | N181: 0.9515944039 | O181: 0.9515291189 | P181: -6.528499634e-05 | Q181: 6.528499634e-05 | V181: 0.2811725425 | W181: 0.960730739 | X181: 0.9607646158 | Y181: 2.110192661e-05 | Z181: 2.110192661e-05 | AE181: 17.9 | AF181: 0.9515944039 | AG181: 0.9516132918 | AH181: -3.733880264e-05 | AI181: 3.733880264e-05
D182: 0.2827433388 | E182: 0.9602936857 | F182: 0.9597578815 | G182: -0.0005358041811 | H182: 0.0005358041811 | M182: 18 | N182: 0.9510565163 | O182: 0.9509925569 | P182: -6.395941262e-05 | Q182: 6.395941262e-05 | V182: 0.2827433388 | W182: 0.9602936857 | X182: 0.9603273956 | Y182: 1.929731735e-05 | Z182: 1.929731735e-05 | AE182: 18 | AF182: 0.9510565163 | AG182: 0.9510739057 | AH182: -3.862377904e-05 | AI182: 3.862377904e-05
D183: 0.2843141351 | E183: 0.9598542629 | F183: 0.9593226163 | G183: -0.0005316466507 | H183: 0.0005316466507 | M183: 18.1 | N183: 0.9505157316 | O183: 0.9504531275 | P183: -6.260412199e-05 | Q183: 6.260412199e-05 | V183: 0.2843141351 | W183: 0.9598542629 | X183: 0.9598877866 | Y183: 1.749914651e-05 | Z183: 1.749914651e-05 | AE183: 18.1 | AF183: 0.9505157316 | AG183: 0.9505316282 | AH183: -3.988352383e-05 | AI183: 3.988352383e-05
D184: 0.2858849315 | E184: 0.9594124719 | F184: 0.958885111 | G184: -0.0005273608517 | H184: 0.0005273608517 | M184: 18.2 | N184: 0.9499720515 | O184: 0.9499108308 | P184: -6.122077178e-05 | Q184: 6.122077178e-05 | V184: 0.2858849315 | W184: 0.9594124719 | X184: 0.9594457903 | Y184: 1.570790222e-05 | Z184: 1.570790222e-05 | AE184: 18.2 | AF184: 0.9499720515 | AG184: 0.9499864612 | AH184: -4.111768513e-05 | AI184: 4.111768513e-05
D185: 0.2874557278 | E185: 0.9589683135 | F185: 0.9584453656 | G185: -0.0005229478741 | H185: 0.0005229478741 | M185: 18.3 | N185: 0.9494254776 | O185: 0.9493656666 | P185: -5.981101813e-05 | Q185: 5.981101813e-05 | V185: 0.2874557278 | W185: 0.9589683135 | X185: 0.9590014084 | Y185: 1.39240668e-05 | Z185: 1.39240668e-05 | AE185: 18.3 | AF185: 0.9494254776 | AG185: 0.9494384073 | AH185: -4.232591992e-05 | AI185: 4.232591992e-05
D186: 0.2890265241 | E186: 0.958521789 | F186: 0.9580033802 | G186: -0.0005184088139 | H186: 0.0005184088139 | M186: 18.4 | N186: 0.9488760116 | O186: 0.9488176351 | P186: -5.8376526e-05 | Q186: 5.8376526e-05 | V186: 0.2890265241 | W186: 0.958521789 | X186: 0.9585546426 | Y186: 1.214811668e-05 | Z186: 1.214811668e-05 | AE186: 18.4 | AF186: 0.9488760116 | AG186: 0.9488874684 | AH186: -4.350789395e-05 | AI186: 4.350789395e-05
D187: 0.2905973205 | E187: 0.9580728995 | F187: 0.9575591547 | G187: -0.0005137447728 | H187: 0.0005137447728 | M187: 18.5 | N187: 0.9483236552 | O187: 0.9482667362 | P187: -5.691896916e-05 | Q187: 5.691896916e-05 | V187: 0.2905973205 | W187: 0.9580728995 | X187: 0.9581054945 | Y187: 1.038052249e-05 | Z187: 1.038052249e-05 | AE187: 18.5 | AF187: 0.9483236552 | AG187: 0.9483336469 | AH187: -4.466328182e-05 | AI187: 4.466328182e-05
D188: 0.2921681168 | E188: 0.957621646 | F188: 0.9571126891 | G188: -0.0005089568584 | H188: 0.0005089568584 | M188: 18.6 | N188: 0.94776841 | O188: 0.94771297 | P188: -5.544003019e-05 | Q188: 5.544003019e-05 | V188: 0.2921681168 | W188: 0.957621646 | X188: 0.9576539659 | Y188: 8.621749004e-06 | Z188: 8.621749004e-06 | AE188: 18.6 | AF188: 0.94776841 | AG188: 0.9477769451 | AH188: -4.579176691e-05 | AI188: 4.579176691e-05
D189: 0.2937389131 | E189: 0.9571680296 | F189: 0.9566639834 | G189: -0.0005040461842 | H189: 0.0005040461842 | M189: 18.7 | N189: 0.9472102777 | O189: 0.9471563363 | P189: -5.394140045e-05 | Q189: 5.394140045e-05 | V189: 0.2937389131 | W189: 0.9571680296 | X189: 0.9572000583 | Y189: 6.872255177e-06 | Z189: 6.872255177e-06 | AE189: 18.7 | AF189: 0.9472102777 | AG189: 0.947217365 | AH189: -4.68930414e-05 | AI189: 4.68930414e-05
D190: 0.2953097094 | E190: 0.9567120516 | F190: 0.9562130377 | G190: -0.0004990138693 | H190: 0.0004990138693 | M190: 18.8 | N190: 0.9466492601 | O190: 0.9465968353 | P190: -5.242478012e-05 | Q190: 5.242478012e-05 | V190: 0.2953097094 | W190: 0.9567120516 | X190: 0.9567437734 | Y190: 5.132494124e-06 | Z190: 5.132494124e-06 | AE190: 18.8 | AF190: 0.9466492601 | AG190: 0.946654909 | AH190: -4.796680628e-05 | AI190: 4.796680628e-05
D191: 0.2968805058 | E191: 0.9562537129 | F191: 0.9557598519 | G191: -0.0004938610389 | H191: 0.0004938610389 | M191: 18.9 | N191: 0.9460853588 | O191: 0.9460344669 | P191: -5.089187814e-05 | Q191: 5.089187814e-05 | V191: 0.2968805058 | W191: 0.9562537129 | X191: 0.9562851129 | Y191: 3.402913136e-06 | Z191: 3.402913136e-06 | AE191: 18.9 | AF191: 0.9460853588 | AG191: 0.9460895793 | AH191: -4.901277132e-05 | AI191: 4.901277132e-05
D192: 0.2984513021 | E192: 0.9557930148 | F192: 0.955304426 | G192: -0.0004885888239 | H192: 0.0004885888239 | M192: 19 | N192: 0.9455185756 | O192: 0.9454692312 | P192: -4.934441227e-05 | Q192: 4.934441227e-05 | V192: 0.2984513021 | W192: 0.9557930148 | X192: 0.9558240784 | Y192: 1.68395368e-06 | Z192: 1.68395368e-06 | AE192: 19 | AF192: 0.9455185756 | AG192: 0.9455213781 | AH192: -5.003065508e-05 | AI192: 5.003065508e-05
D193: 0.3000220984 | E193: 0.9553299584 | F193: 0.95484676 | G193: -0.000483198361 | H193: 0.000483198361 | M193: 19.1 | N193: 0.9449489122 | O193: 0.944901128 | P193: -4.778410902e-05 | Q193: 4.778410902e-05 | V193: 0.3000220984 | W193: 0.9553299584 | X193: 0.9553606716 | Y193: -2.394860055e-08 | Z193: 2.394860055e-08 | AE193: 19.1 | AF193: 0.9449489122 | AG193: 0.9449503077 | AH193: -5.102018488e-05 | AI193: 5.102018488e-05
D194: 0.3015928947 | E194: =COS(x) -> 0.9548645447 | F194: =y0*(x-x00)*(x-x000)/(x0-x00)/(x0-x000)+y00*(x-x0)*(x-x000)/(x00-x0)/(x00-x000)+y000*(x-x0)*(x-x00)/(x000-x0)/(x000-x00) -> 0.954386854 | G194: -0.0004776907927 | H194: 0.0004776907927 | M194: 19.2 | N194: =COS(xx*PI()/180) -> 0.9443763702 | O194: =yy0*(xx-xx00)*(xx-xx000)/(xx0-xx00)/(xx0-xx000)+yy00*(xx-xx0)*(xx-xx000)/(xx00-xx0)/(xx00-xx000)+yy000*(xx-xx0)*(xx-xx00)/(xx000-xx0)/(xx000-xx00) -> 0.9443301575 | P194: -4.621270369e-05 | Q194: 4.621270369e-05 | V194: 0.3015928947 | W194: =COS(xxx) -> 0.9548645447 | X194: =yyy0*(xxx-xxx00)*(xxx-xxx000)*(xxx-xxx0000)/(xxx0-xxx00)/(xxx0-xxx000)/(xxx0-xxx0000)+yyy00*(xxx-xxx0)*(xxx-xxx000)*(xxx-xxx0000)/(xxx00-xxx0)/(xxx00-xxx000)/(xxx00-xxx0000)+yyy000*(xxx-xxx0)*(xxx-xxx00)*(xxx-xxx0000)/(xxx000-xxx0)/(xxx000-xxx00)/(xxx000-xxx0000)+yyy0000*(xxx-xxx0)*(xxx-xxx00)*(xxx-xxx000)/(xxx0000-xxx0)/(xxx0000-xxx00)/(xxx0000-xxx000) -> 0.9548948942 | Y194: -1.720363879e-06 | Z194: 1.720363879e-06 | AE194: 19.2 | AF194: =COS(xxxx*PI()/180) -> 0.9443763702 | AG194: =yyyy0*(xxxx-xxxx00)*(xxxx-xxxx000)*(xxxx-xxxx0000)/(xxxx0-xxxx00)/(xxxx0-xxxx000)/(xxxx0-xxxx0000)+yyyy00*(xxxx-xxxx0)*(xxxx-xxxx000)*(xxxx-xxxx0000)/(xxxx00-xxxx0)/(xxxx00-xxxx000)/(xxxx00-xxxx0000)+yyyy000*(xxxx-xxxx0)*(xxxx-xxxx00)*(xxxx-xxxx0000)/(xxxx000-xxxx0)/(xxxx000-xxxx00)/(xxxx000-xxxx0000)+yyyy0000*(xxxx-xxxx0)*(xxxx-xxxx00)*(xxxx-xxxx000)/(xxxx0000-xxxx0)/(xxxx0000-xxxx00)/(xxxx0000-xxxx000) -> 0.9443763702 | AH194: -5.198109684e-05 | AI194: 5.198109684e-05
D195: =D194+dx -> 0.3031636911 | E195: 0.9543967751 | F195: 0.9539247078 | G195: =F195-E195 -> -0.0004720672674 | H195: =ABS(G195) -> 0.0004720672674 | M195: =M194+dxx -> 19.3 | N195: 0.9438009516 | O195: 0.9437563196 | P195: =O195-N195 -> -4.463194034e-05 | Q195: =ABS(P195) -> 4.463194034e-05 | V195: =V194+dxxx0 -> 0.3031636911 | W195: 0.9543967751 | X195: 0.9544267478 | Y195: -3.404868147e-06 | Z195: 3.404868147e-06 | AE195: 19.3 | AF195: 0.9438009516 | AG195: 0.943799568 | AH195: -5.291313582e-05 | AI195: 5.291313582e-05
D196: 0.3047344874 | E196: 0.9539266506 | F196: 0.9534603216 | G196: -0.0004663289393 | H196: 0.0004663289393 | M196: 19.4 | N196: 0.9432226579 | O196: 0.9431796144 | P196: -4.304357178e-05 | Q196: 4.304357178e-05 | V196: 0.3047344874 | W196: 0.9539266506 | X196: 0.9539562341 | Y196: -5.077043207e-06 | Z196: 5.077043207e-06 | AE196: 19.4 | AF196: 0.9432226579 | AG196: 0.9432199031 | AH196: -5.381605548e-05 | AI196: 5.381605548e-05
D197: 0.3063052837 | E197: 0.9534541723 | F197: 0.9529936954 | G197: -0.0004604769684 | H197: 0.0004604769684 | M197: 19.5 | N197: 0.9426414911 | O197: 0.9426000417 | P197: -4.144935962e-05 | Q197: 4.144935962e-05 | V197: 0.3063052837 | W197: 0.9534541723 | X197: 0.9534833547 | Y197: -6.736476674e-06 | Z197: 6.736476674e-06 | AE197: 19.5 | AF197: 0.9426414911 | AG197: 0.9426373779 | AH197: -5.46896182e-05 | AI197: 5.46896182e-05
D198: 0.3078760801 | E198: 0.9529793415 | F198: 0.952524829 | G198: -0.0004545125204 | H198: 0.0004545125204 | M198: 19.6 | N198: 0.9420574528 | O198: 0.9420176017 | P198: -3.985107417e-05 | Q198: 3.985107417e-05 | V198: 0.3078760801 | W198: 0.9529793415 | X198: 0.9530081114 | Y198: -8.382761969e-06 | Z198: 8.382761969e-06 | AE198: 19.6 | AF198: 0.9420574528 | AG198: 0.9420519946 | AH198: -5.553359513e-05 | AI198: 5.553359513e-05
D199: 0.3094468764 | E199: 0.9525021593 | F199: 0.9520537226 | G199: -0.000448436767 | H199: 0.000448436767 | M199: 19.7 | N199: 0.9414705448 | O199: 0.9414322943 | P199: -3.825049453e-05 | Q199: 3.825049453e-05 | V199: 0.3094468764 | W199: 0.9525021593 | X199: 0.9525305057 | Y199: -1.001549832e-05 | Z199: 1.001549832e-05 | AE199: 19.7 | AF199: 0.9414705448 | AG199: 0.9414637555 | AH199: -5.634776618e-05 | AI199: 5.634776618e-05
D200: 0.3110176727 | E200: 0.9520226269 | F200: 0.9515803761 | G200: -0.0004422508855 | H200: 0.0004422508855 | M200: 19.8 | N200: 0.940880769 | O200: 0.9408441195 | P200: -3.664940851e-05 | Q200: 3.664940851e-05 | V200: 0.3110176727 | W200: 0.9520226269 | X200: 0.9520505393 | Y200: -1.163429075e-05 | Z200: 1.163429075e-05 | AE200: 19.8 | AF200: 0.940880769 | AG200: 0.9408726626 | AH200: -5.713191997e-05 | AI200: 5.713191997e-05
... 302 more rows
